Department Family,Entity,Supplier,Date,Invoice Id,Line Amount SUM,Project#,Po Budget Centre,Expense Area,Po Subjective,Expense Type,Description,Vendor Type Lookup Code,Wga Ref
Department of Health,Public Health England,CENTRAL MANCHESTER UNIVERSITY HOSPITALS NHS FOUNDATION TRUST,05-Apr-17,5803433,32331.5,NULL,APE1,NIS: Manchester Lab,41135,Other laboratory Consumables,6536141,NHS,NHTRW3FT
Department of Health,Public Health England,CENTRAL MANCHESTER UNIVERSITY HOSPITALS NHS FOUNDATION TRUST,05-Apr-17,5803433,161657.49,NULL,APE1,NIS: Manchester Lab,41135,Other laboratory Consumables,FOR PAYMENT OF INVOICES FOR QUARTERLY RECHARGE FOR OCCUPATION OF LABORATORY SPACE ,NHS,NHTRW3FT
Department of Health,Public Health England,CENTRAL MANCHESTER UNIVERSITY HOSPITALS NHS FOUNDATION TRUST,05-Apr-17,5822337,158786.6,NULL,APE1,NIS: Manchester Lab,41120,Kits: General,6534203,NHS,NHTRW3FT
Department of Health,Public Health England,CENTRAL MANCHESTER UNIVERSITY HOSPITALS NHS FOUNDATION TRUST,05-Apr-17,5822337,793933,NULL,APE1,NIS: Manchester Lab,41120,Kits: General,FOR PAYMENT OF INVOICES FOR - MONTHLY RECHARGE FOR SUPPLY OF VIROLOGY CONSUMABLES ,NHS,NHTRW3FT
Department of Health,Public Health England,CENTRAL MANCHESTER UNIVERSITY HOSPITALS NHS FOUNDATION TRUST,05-Apr-17,5822349,64663,NULL,APE1,NIS: Manchester Lab,41135,Other laboratory Consumables,6536141,NHS,NHTRW3FT
Department of Health,Public Health England,CENTRAL MANCHESTER UNIVERSITY HOSPITALS NHS FOUNDATION TRUST,05-Apr-17,5822349,323314.98,NULL,APE1,NIS: Manchester Lab,41135,Other laboratory Consumables,FOR PAYMENT OF INVOICES FOR QUARTERLY RECHARGE FOR OCCUPATION OF LABORATORY SPACE ,NHS,NHTRW3FT
Department of Health,Public Health England,SIMPLY BECAUSE LTD,05-Apr-17,5897297,22230,NULL,UMA4,MKT: Ageing Well: Early Diagnosis,59017,Social Marketing Productions Cost,6551514,NULL,NOT CGA
Department of Health,Public Health England,SIMPLY BECAUSE LTD,05-Apr-17,5897297,111150,NULL,UMA4,MKT: Ageing Well: Early Diagnosis,59017,Social Marketing Productions Cost,Be Clear on Cancer - generic symptoms campaign event costs,NULL,NOT CGA
Department of Health,Public Health England,CARDIFF & VALE UNIVERSITY LOCAL HEALTH BOARD,05-Apr-17,5911315,26700,NULL,MLA7,HP: NPIS,54325,Sub-contracted NPIS,NPIS additional income from BUPA and Irish contracts for Cardiff,NHS,WNHT02
Department of Health,Public Health England,HARLOW PRINTING LTD,05-Apr-17,5914098,148920,NULL,UFA6,HI: Cancer Screening Leaflets,64405,Promotional Material and Events,CESP01 NHS Cervical Screening - Helping You Decide,VENDOR,NOT CGA
Department of Health,Public Health England,CENTRAL MANCHESTER UNIVERSITY HOSPITALS NHS FOUNDATION TRUST,05-Apr-17,5915700,32331.5,NULL,APE1,NIS: Manchester Lab,41135,Other laboratory Consumables,6536141,NHS,NHTRW3FT
Department of Health,Public Health England,CENTRAL MANCHESTER UNIVERSITY HOSPITALS NHS FOUNDATION TRUST,05-Apr-17,5915700,161657.49,NULL,APE1,NIS: Manchester Lab,41135,Other laboratory Consumables,FOR PAYMENT OF INVOICES FOR QUARTERLY RECHARGE FOR OCCUPATION OF LABORATORY SPACE,NHS,NHTRW3FT
Department of Health,Public Health England,SHEFFIELD TEACHING HOSPITALS NHS TRUST,05-Apr-17,5926338,49132.5,NULL,UFA3,HI: NCS Cervical,54360,Other Outsourced Services,Sheffield Teaching Hospital: HPV Primary Screening Services SLA - actual screens,NHS,NHTRHQNFT
Department of Health,Public Health England,NHS BUSINESS SERVICES AUTHORITY,05-Apr-17,5934083,5242.2,NULL,VEA7,VAC: Vaccines and Countermeasures C&A Programmes,54360,Other Outsourced Services,6536179,NHS,NHTST1450
Department of Health,Public Health England,NHS BUSINESS SERVICES AUTHORITY,05-Apr-17,5934083,26211,NULL,VEA7,VAC: Vaccines and Countermeasures C&A Programmes,54360,Other Outsourced Services,Ongoing NHS BSA Contract management of Childhood Immunisation Storage & Distribution Service,NHS,NHTST1450
Department of Health,Public Health England,NORTHGATE PUBLIC SERVICES (UK) LIMITED,05-Apr-17,5942306,47690.8,NULL,UCD7,HI: ESP Newborn Hearing Screening,61610,Software Maint & Support Costs,6557717,VENDOR,NOT CGA
Department of Health,Public Health England,NORTHGATE PUBLIC SERVICES (UK) LIMITED,05-Apr-17,5942306,238454,NULL,UCD7,HI: ESP Newborn Hearing Screening,61610,Software Maint & Support Costs,Northgate: NHSP managed Contract,VENDOR,NOT CGA
Department of Health,Public Health England,NHS BUSINESS SERVICES AUTHORITY,05-Apr-17,5961277,5242.2,NULL,VEA7,VAC: Vaccines and Countermeasures C&A Programmes,54360,Other Outsourced Services,6536179,NHS,NHTST1450
Department of Health,Public Health England,NHS BUSINESS SERVICES AUTHORITY,05-Apr-17,5961277,26211,NULL,VEA7,VAC: Vaccines and Countermeasures C&A Programmes,54360,Other Outsourced Services,Ongoing NHS BSA Contract management of Childhood Immunisation Storage & Distribution Service,NHS,NHTST1450
Department of Health,Public Health England,NHS BUSINESS SERVICES AUTHORITY,05-Apr-17,5961301,6513.4,NULL,VEA5,VAC: Vaccines and Countermeasures EPRR Programmes,54360,Other Outsourced Services,6521716,NHS,NHTST1450
Department of Health,Public Health England,NHS BUSINESS SERVICES AUTHORITY,05-Apr-17,5961301,32567,NULL,VEA5,VAC: Vaccines and Countermeasures EPRR Programmes,54360,Other Outsourced Services,NHS BSA services provided for EPRR,NHS,NHTST1450
Department of Health,Public Health England,NORTHGATE PUBLIC SERVICES (UK) LIMITED,05-Apr-17,5963370,64852.6,NULL,UCD8,HI: ESP Newborn & Infant Physical Examination,61610,Software Maint & Support Costs,6557075,VENDOR,NOT CGA
Department of Health,Public Health England,NORTHGATE PUBLIC SERVICES (UK) LIMITED,05-Apr-17,5963370,324263,NULL,UCD8,HI: ESP Newborn & Infant Physical Examination,61610,Software Maint & Support Costs,NIPE Contract: Support and Maintenance Element: Contains everything including: Managed Support service 365days (7am to 7pm) Hosting and Hardware Programme Governance NPS License Charge Indexa,VENDOR,NOT CGA
Department of Health,Public Health England,2CV LIMITED,05-Apr-17,5964099,7160,NULL,UMB6,MKT: Living Well: Sexual Health,12205,PHE Funding,6557687,VENDOR,NOT CGA
Department of Health,Public Health England,2CV LIMITED,05-Apr-17,5964099,35800,NULL,UMB6,MKT: Living Well: Sexual Health,12205,PHE Funding,Sexual Health/ Condom Campaign/Proposition testing,VENDOR,NOT CGA
Department of Health,Public Health England,NHS BUSINESS SERVICES AUTHORITY,05-Apr-17,5964625,10248.1,NULL,VEA6,VAC: Vaccines and Countermeasures Panflu Programmes,54360,Other Outsourced Services,6542472,NHS,NHTST1450
Department of Health,Public Health England,NHS BUSINESS SERVICES AUTHORITY,05-Apr-17,5964625,51240.51,NULL,VEA6,VAC: Vaccines and Countermeasures Panflu Programmes,54360,Other Outsourced Services,Pan Flu & EPRR storage and distribution re-procurement services,NHS,NHTST1450
Department of Health,Public Health England,CARDIFF & VALE UNIVERSITY LOCAL HEALTH BOARD,05-Apr-17,5965633,185500,NULL,MLA7,HP: NPIS,54310,Sub-contracted Healthcare Advice,NPIS Services to PHE from Cardiff & Vale University Local Health Board for period ,NHS,WNHT02
Department of Health,Public Health England,ELKAY LABORATORY PRODUCTS (UK) LTD,05-Apr-17,5965724,299,110693,ZZZA,Balance Sheet,93340,AUC - Plant & Equipment,Created by Allocation :Partcode U201/373245/3-50/17a Rack 1C,VENDOR,NOT CGA
Department of Health,Public Health England,ELKAY LABORATORY PRODUCTS (UK) LTD,05-Apr-17,5965724,2939.1,110693,ZZZA,Balance Sheet,93340,AUC - Plant & Equipment,Partcode U201/373/82/1-50/17a Rack 3C,VENDOR,NOT CGA
Department of Health,Public Health England,ELKAY LABORATORY PRODUCTS (UK) LTD,05-Apr-17,5965724,5876.26,110693,ZZZA,Balance Sheet,93340,AUC - Plant & Equipment,Partcode U201/373245/3-50/17a Rack 1C,VENDOR,NOT CGA
Department of Health,Public Health England,ELKAY LABORATORY PRODUCTS (UK) LTD,05-Apr-17,5965724,6496.33,110693,ZZZA,Balance Sheet,93340,AUC - Plant & Equipment,6556186,VENDOR,NOT CGA
Department of Health,Public Health England,ELKAY LABORATORY PRODUCTS (UK) LTD,05-Apr-17,5965724,23367.3,110693,ZZZA,Balance Sheet,93340,AUC - Plant & Equipment,Partcode U201/373/164/2-50/17a Rack 2C,VENDOR,NOT CGA
Department of Health,Public Health England,DEPARTMENT OF HEALTH,05-Apr-17,5965754,19.28,NULL,HLN4,FCD: Skipton House London,66410,Electricity,"Accommodation costs (ELECTRICITY (ZERO VAT) for Skipton House, 80 London Road, London",NHS,NHTDHCORE
Department of Health,Public Health England,DEPARTMENT OF HEALTH,05-Apr-17,5965754,70.4,NULL,HLN4,FCD: Skipton House London,68150,Property Legal Costs,6557644,NHS,NHTDHCORE
Department of Health,Public Health England,DEPARTMENT OF HEALTH,05-Apr-17,5965754,351.98,NULL,HLN4,FCD: Skipton House London,68150,Property Legal Costs,"Accommodation costs (PROFESSIONAL FEES) for Skipton House, 80 London Road, London",NHS,NHTDHCORE
Department of Health,Public Health England,DEPARTMENT OF HEALTH,05-Apr-17,5965754,965.25,NULL,HLN4,FCD: Skipton House London,66405,Gas,6557644,NHS,NHTDHCORE
Department of Health,Public Health England,DEPARTMENT OF HEALTH,05-Apr-17,5965754,1387.9,NULL,HLN4,FCD: Skipton House London,66420,Water,"Accommodation costs (WATER) for Skipton House, 80 London Road, London",NHS,NHTDHCORE
Department of Health,Public Health England,DEPARTMENT OF HEALTH,05-Apr-17,5965754,3173.35,NULL,HLN4,FCD: Skipton House London,68105,Cleaning Costs,6557644,NHS,NHTDHCORE
Department of Health,Public Health England,DEPARTMENT OF HEALTH,05-Apr-17,5965754,3936.64,NULL,HLN4,FCD: Skipton House London,68140,Sub-contracted Facilities Mgnt,6557644,NHS,NHTDHCORE
Department of Health,Public Health England,DEPARTMENT OF HEALTH,05-Apr-17,5965754,4031.11,NULL,HLN4,FCD: Skipton House London,68110,Security Costs,6557644,NHS,NHTDHCORE
Department of Health,Public Health England,DEPARTMENT OF HEALTH,05-Apr-17,5965754,4049.72,NULL,HLN4,FCD: Skipton House London,66410,Electricity,6557644,NHS,NHTDHCORE
Department of Health,Public Health England,DEPARTMENT OF HEALTH,05-Apr-17,5965754,4826.23,NULL,HLN4,FCD: Skipton House London,66405,Gas,"Accommodation costs (GAS) for Skipton House, 80 London Road, London",NHS,NHTDHCORE
Department of Health,Public Health England,DEPARTMENT OF HEALTH,05-Apr-17,5965754,8935.58,NULL,HLN4,FCD: Skipton House London,68140,Sub-contracted Facilities Mgnt,"Accommodation costs (FM) for Skipton House, 80 London Road, London",NHS,NHTDHCORE
Department of Health,Public Health England,DEPARTMENT OF HEALTH,05-Apr-17,5965754,9088.37,NULL,HLN4,FCD: Skipton House London,68426,Internal Buildings Planned Maintenance,6557644,NHS,NHTDHCORE
Department of Health,Public Health England,DEPARTMENT OF HEALTH,05-Apr-17,5965754,10639.87,NULL,HLN4,FCD: Skipton House London,68426,Internal Buildings Planned Maintenance,"Accommodation costs (BUILDING MAINTENANCE (PHE ONLY) for Skipton House, 80 London Road, London",NHS,NHTDHCORE
Department of Health,Public Health England,DEPARTMENT OF HEALTH,05-Apr-17,5965754,10747.6,NULL,HLN4,FCD: Skipton House London,68140,Sub-contracted Facilities Mgnt,"Accommodation costs (LEASE RENEWAL) for Skipton House, 80 London Road, London",NHS,NHTDHCORE
Department of Health,Public Health England,DEPARTMENT OF HEALTH,05-Apr-17,5965754,15866.74,NULL,HLN4,FCD: Skipton House London,68105,Cleaning Costs,"Accommodation costs (CLEANING) for Skipton House, 80 London Road, London",NHS,NHTDHCORE
Department of Health,Public Health England,DEPARTMENT OF HEALTH,05-Apr-17,5965754,20155.57,NULL,HLN4,FCD: Skipton House London,68110,Security Costs,"Accommodation costs (SECUIRTY) for Skipton House, 80 London Road, London",NHS,NHTDHCORE
Department of Health,Public Health England,DEPARTMENT OF HEALTH,05-Apr-17,5965754,20248.58,NULL,HLN4,FCD: Skipton House London,66410,Electricity,"Accommodation costs (ELECTRICITY) for Skipton House, 80 London Road, London",NHS,NHTDHCORE
Department of Health,Public Health England,DEPARTMENT OF HEALTH,05-Apr-17,5965754,34802.07,NULL,HLN4,FCD: Skipton House London,68426,Internal Buildings Planned Maintenance,"Accommodation costs (BUILDING MAINTENANCE) for Skipton House, 80 London Road, London",NHS,NHTDHCORE
Department of Health,Public Health England,DEPARTMENT OF HEALTH,05-Apr-17,5965754,107151.8,NULL,HLN4,FCD: Skipton House London,66110,Rates,"Accommodation costs (RATES) for Skipton House, 80 London Road, London",NHS,NHTDHCORE
Department of Health,Public Health England,DEPARTMENT OF HEALTH,05-Apr-17,5965754,335038.37,NULL,HLN4,FCD: Skipton House London,66105,Rent,"Accommodation costs (RENT) for Skipton House, 80 London Road, London",NHS,NHTDHCORE
Department of Health,Public Health England,DEPARTMENT OF HEALTH,05-Apr-17,5965759,1843.75,NULL,HLN3,FCD: Wellington House London,66420,Water,"accommodation costs for (WATER) 4th & 5th floor, Wellington House, 133-155 Waterloo Road, London",NHS,NHTDHCORE
Department of Health,Public Health England,DEPARTMENT OF HEALTH,05-Apr-17,5965759,3679.37,NULL,HLN3,FCD: Wellington House London,68105,Cleaning Costs,6555638,NHS,NHTDHCORE
Department of Health,Public Health England,DEPARTMENT OF HEALTH,05-Apr-17,5965759,3858.58,NULL,HLN3,FCD: Wellington House London,66410,Electricity,6555638,NHS,NHTDHCORE
Department of Health,Public Health England,DEPARTMENT OF HEALTH,05-Apr-17,5965759,3887.21,NULL,HLN3,FCD: Wellington House London,68140,Sub-contracted Facilities Mgnt,"accommodation costs for (XEROX) 4th & 5th floor, Wellington House, 133-155 Waterloo Road, London",NHS,NHTDHCORE
Department of Health,Public Health England,DEPARTMENT OF HEALTH,05-Apr-17,5965759,5078.04,NULL,HLN3,FCD: Wellington House London,68110,Security Costs,6555638,NHS,NHTDHCORE
Department of Health,Public Health England,DEPARTMENT OF HEALTH,05-Apr-17,5965759,6075.2,NULL,HLN3,FCD: Wellington House London,68140,Sub-contracted Facilities Mgnt,6555638,NHS,NHTDHCORE
Department of Health,Public Health England,DEPARTMENT OF HEALTH,05-Apr-17,5965759,12122.6,NULL,HLN3,FCD: Wellington House London,68140,Sub-contracted Facilities Mgnt,"accommodation costs for (FM (CENTRAL) 4th & 5th floor, Wellington House, 133-155 Waterloo Road, London",NHS,NHTDHCORE
Department of Health,Public Health England,DEPARTMENT OF HEALTH,05-Apr-17,5965759,13538.97,NULL,HLN3,FCD: Wellington House London,68426,Internal Buildings Planned Maintenance,6555638,NHS,NHTDHCORE
Department of Health,Public Health England,DEPARTMENT OF HEALTH,05-Apr-17,5965759,14366.22,NULL,HLN3,FCD: Wellington House London,68140,Sub-contracted Facilities Mgnt,"Accommodation costs for (FM) 4th & 5th floor, Wellington House, 133-155 Waterloo Road, London",NHS,NHTDHCORE
Department of Health,Public Health England,DEPARTMENT OF HEALTH,05-Apr-17,5965759,18396.84,NULL,HLN3,FCD: Wellington House London,68105,Cleaning Costs,"accommodation costs for (CLEANING) 4th & 5th floor, Wellington House, 133-155 Waterloo Road, London",NHS,NHTDHCORE
Department of Health,Public Health England,DEPARTMENT OF HEALTH,05-Apr-17,5965759,19292.88,NULL,HLN3,FCD: Wellington House London,66410,Electricity,"accommodation costs for (ELECTRICITY (NR VAT) 4th & 5th floor, Wellington House, 133-155 Waterloo Road, London",NHS,NHTDHCORE
Department of Health,Public Health England,DEPARTMENT OF HEALTH,05-Apr-17,5965759,25390.18,NULL,HLN3,FCD: Wellington House London,68110,Security Costs,"accommodation costs for (SECURITY) 4th & 5th floor, Wellington House, 133-155 Waterloo Road, London",NHS,NHTDHCORE
Department of Health,Public Health England,DEPARTMENT OF HEALTH,05-Apr-17,5965759,31734.71,NULL,HLN3,FCD: Wellington House London,68426,Internal Buildings Planned Maintenance,"accommodation costs for (BUILDING MAINTENANCE (VARIABLE) 4th & 5th floor, Wellington House, 133-155 Waterloo Road, London",NHS,NHTDHCORE
Department of Health,Public Health England,DEPARTMENT OF HEALTH,05-Apr-17,5965759,35960.14,NULL,HLN3,FCD: Wellington House London,68426,Internal Buildings Planned Maintenance,"accommodation costs for (BUILDING MAINTENANCE (FIXED COSTS) 4th & 5th floor, Wellington House, 133-155 Waterloo Road, London",NHS,NHTDHCORE
Department of Health,Public Health England,DEPARTMENT OF HEALTH,05-Apr-17,5965759,89559.54,NULL,HLN3,FCD: Wellington House London,66110,Rates,"accommodation costs for (RATES) 4th & 5th floor, Wellington House, 133-155 Waterloo Road, London",NHS,NHTDHCORE
Department of Health,Public Health England,DEPARTMENT OF HEALTH,05-Apr-17,5965765,28.59,NULL,HLN4,FCD: Skipton House London,68426,Internal Buildings Planned Maintenance,"Accommodation costs (ESTATES - SKH LEASE RENEWAL FEES) for Skipton House, 80 London Road, London",NHS,NHTDHCORE
Department of Health,Public Health England,DEPARTMENT OF HEALTH,05-Apr-17,5965765,492.24,NULL,HLN4,FCD: Skipton House London,66405,Gas,6556195,NHS,NHTDHCORE
Department of Health,Public Health England,DEPARTMENT OF HEALTH,05-Apr-17,5965765,664.8,NULL,HLN4,FCD: Skipton House London,68426,Internal Buildings Planned Maintenance,"Accommodation costs (ESTATES DDA AUDIT) for Skipton House, 80 London Road, London",NHS,NHTDHCORE
Department of Health,Public Health England,DEPARTMENT OF HEALTH,05-Apr-17,5965765,1703.24,NULL,HLN4,FCD: Skipton House London,66420,Water,"Accommodation costs (WATER) for Skipton House, 80 London Road, London",NHS,NHTDHCORE
Department of Health,Public Health England,DEPARTMENT OF HEALTH,05-Apr-17,5965765,2461.2,NULL,HLN4,FCD: Skipton House London,66405,Gas,"Accommodation costs (GAS) for Skipton House, 80 London Road, London",NHS,NHTDHCORE
Department of Health,Public Health England,DEPARTMENT OF HEALTH,05-Apr-17,5965765,3177.38,NULL,HLN4,FCD: Skipton House London,68105,Cleaning Costs,6556195,NHS,NHTDHCORE
Department of Health,Public Health England,DEPARTMENT OF HEALTH,05-Apr-17,5965765,4028.46,NULL,HLN4,FCD: Skipton House London,68110,Security Costs,6556195,NHS,NHTDHCORE
Department of Health,Public Health England,DEPARTMENT OF HEALTH,05-Apr-17,5965765,5358.39,NULL,HLN4,FCD: Skipton House London,66410,Electricity,6556195,NHS,NHTDHCORE
Department of Health,Public Health England,DEPARTMENT OF HEALTH,05-Apr-17,5965765,6588.35,NULL,HLN4,FCD: Skipton House London,68140,Sub-contracted Facilities Mgnt,6556195,NHS,NHTDHCORE
Department of Health,Public Health England,DEPARTMENT OF HEALTH,05-Apr-17,5965765,11522.44,NULL,HLN4,FCD: Skipton House London,68426,Internal Buildings Planned Maintenance,6556195,NHS,NHTDHCORE
Department of Health,Public Health England,DEPARTMENT OF HEALTH,05-Apr-17,5965765,15201.19,NULL,HLN4,FCD: Skipton House London,68140,Sub-contracted Facilities Mgnt,"Accommodation costs (FM) for Skipton House, 80 London Road, London",NHS,NHTDHCORE
Department of Health,Public Health England,DEPARTMENT OF HEALTH,05-Apr-17,5965765,15886.9,NULL,HLN4,FCD: Skipton House London,68105,Cleaning Costs,"Accommodation costs (CLEANING) for Skipton House, 80 London Road, London",NHS,NHTDHCORE
Department of Health,Public Health England,DEPARTMENT OF HEALTH,05-Apr-17,5965765,17740.54,NULL,HLN4,FCD: Skipton House London,68140,Sub-contracted Facilities Mgnt,"Accommodation costs (CENTRAL FM) for Skipton House, 80 London Road, London",NHS,NHTDHCORE
Department of Health,Public Health England,DEPARTMENT OF HEALTH,05-Apr-17,5965765,20142.3,NULL,HLN4,FCD: Skipton House London,68110,Security Costs,"Accommodation costs (SECURITY) for Skipton House, 80 London Road, London",NHS,NHTDHCORE
Department of Health,Public Health England,DEPARTMENT OF HEALTH,05-Apr-17,5965765,23292.57,NULL,HLN4,FCD: Skipton House London,68426,Internal Buildings Planned Maintenance,"Accommodation costs (BUILDING MAITENANCE (VARIABLE) for Skipton House, 80 London Road, London",NHS,NHTDHCORE
Department of Health,Public Health England,DEPARTMENT OF HEALTH,05-Apr-17,5965765,26791.93,NULL,HLN4,FCD: Skipton House London,66410,Electricity,"Accommodation costs (ELECTRICITY (NR VAT) for Skipton House, 80 London Road, London",NHS,NHTDHCORE
Department of Health,Public Health England,DEPARTMENT OF HEALTH,05-Apr-17,5965765,33626.23,NULL,HLN4,FCD: Skipton House London,68426,Internal Buildings Planned Maintenance,"Accommodation costs (BUILDING MAITENANCE) for Skipton House, 80 London Road, London",NHS,NHTDHCORE
Department of Health,Public Health England,DEPARTMENT OF HEALTH,05-Apr-17,5965765,123912.07,NULL,HLN4,FCD: Skipton House London,66110,Rates,"Accommodation costs (RATES) for Skipton House, 80 London Road, London",NHS,NHTDHCORE
Department of Health,Public Health England,DEPARTMENT OF HEALTH,05-Apr-17,5965765,335038.37,NULL,HLN4,FCD: Skipton House London,66105,Rent,"Accommodation costs (RENT) for Skipton House, 80 London Road, London",NHS,NHTDHCORE
Department of Health,Public Health England,DEPARTMENT OF HEALTH,05-Apr-17,5965775,299.63,NULL,HLN4,FCD: Skipton House London,68160,Property Professional Services,6556474,NHS,NHTDHCORE
Department of Health,Public Health England,DEPARTMENT OF HEALTH,05-Apr-17,5965775,1498.13,NULL,HLN4,FCD: Skipton House London,68160,Property Professional Services,"accommodation costs (PROFESSIONAL FEES (NR VAT) for Skipton House, 80 London Road, London",NHS,NHTDHCORE
Department of Health,Public Health England,DEPARTMENT OF HEALTH,05-Apr-17,5965775,2080.47,NULL,HLN4,FCD: Skipton House London,66420,Water,"accommodation costs (WATER) for Skipton House, 80 London Road, London",NHS,NHTDHCORE
Department of Health,Public Health England,DEPARTMENT OF HEALTH,05-Apr-17,5965775,3349.55,NULL,HLN4,FCD: Skipton House London,68140,Sub-contracted Facilities Mgnt,"accommodation costs (XEROX) for Skipton House, 80 London Road, London",NHS,NHTDHCORE
Department of Health,Public Health England,DEPARTMENT OF HEALTH,05-Apr-17,5965775,3745.8,NULL,HLN4,FCD: Skipton House London,68105,Cleaning Costs,6556474,NHS,NHTDHCORE
Department of Health,Public Health England,DEPARTMENT OF HEALTH,05-Apr-17,5965775,4788.73,NULL,HLN4,FCD: Skipton House London,68110,Security Costs,6556474,NHS,NHTDHCORE
Department of Health,Public Health England,DEPARTMENT OF HEALTH,05-Apr-17,5965775,5587.91,NULL,HLN4,FCD: Skipton House London,66410,Electricity,6556474,NHS,NHTDHCORE
Department of Health,Public Health England,DEPARTMENT OF HEALTH,05-Apr-17,5965775,7416.54,NULL,HLN4,FCD: Skipton House London,68140,Sub-contracted Facilities Mgnt,6556474,NHS,NHTDHCORE
Department of Health,Public Health England,DEPARTMENT OF HEALTH,05-Apr-17,5965775,11864.26,NULL,HLN4,FCD: Skipton House London,68426,Internal Buildings Planned Maintenance,6556474,NHS,NHTDHCORE
Department of Health,Public Health England,DEPARTMENT OF HEALTH,05-Apr-17,5965775,15566.41,NULL,HLN4,FCD: Skipton House London,68140,Sub-contracted Facilities Mgnt,"accommodation costs (FM) for Skipton House, 80 London Road, London",NHS,NHTDHCORE
Department of Health,Public Health England,DEPARTMENT OF HEALTH,05-Apr-17,5965775,18166.74,NULL,HLN4,FCD: Skipton House London,68140,Sub-contracted Facilities Mgnt,"accommodation costs (FM (CENTRAL) for Skipton House, 80 London Road, London",NHS,NHTDHCORE
Department of Health,Public Health England,DEPARTMENT OF HEALTH,05-Apr-17,5965775,18728.98,NULL,HLN4,FCD: Skipton House London,68105,Cleaning Costs,"accommodation costs (CLEANING) for Skipton House, 80 London Road, London",NHS,NHTDHCORE
Department of Health,Public Health England,DEPARTMENT OF HEALTH,05-Apr-17,5965775,23943.64,NULL,HLN4,FCD: Skipton House London,68110,Security Costs,"accommodation costs (SECURITY) for Skipton House, 80 London Road, London",NHS,NHTDHCORE
Department of Health,Public Health England,DEPARTMENT OF HEALTH,05-Apr-17,5965775,24763.08,NULL,HLN4,FCD: Skipton House London,68426,Internal Buildings Planned Maintenance," accommodation costs (BUILDING MAINTENANCE (VARIABLE) for Skipton House, 80 London Road, London",NHS,NHTDHCORE
Department of Health,Public Health England,DEPARTMENT OF HEALTH,05-Apr-17,5965775,27939.55,NULL,HLN4,FCD: Skipton House London,66410,Electricity,"accommodation costs (ELECTRICITY (NR VAT) for Skipton House, 80 London Road, London",NHS,NHTDHCORE
Department of Health,Public Health England,DEPARTMENT OF HEALTH,05-Apr-17,5965775,34558.26,NULL,HLN4,FCD: Skipton House London,68426,Internal Buildings Planned Maintenance,"accommodation costs (BUILDING MAINTENANCE (FIX COSTS) for Skipton House, 80 London Road, London",NHS,NHTDHCORE
Department of Health,Public Health England,DEPARTMENT OF HEALTH,05-Apr-17,5965775,126737.9,NULL,HLN4,FCD: Skipton House London,66110,Rates,"accommodation costs (RATES) for Skipton House, 80 London Road, London",NHS,NHTDHCORE
Department of Health,Public Health England,DEPARTMENT OF HEALTH,05-Apr-17,5965775,340027.66,NULL,HLN4,FCD: Skipton House London,66105,Rent,"accommodation costs (RENT) for Skipton House, 80 London Road, London",NHS,NHTDHCORE
Department of Health,Public Health England,DEPARTMENT OF HEALTH,05-Apr-17,5965793,99.04,NULL,HLN4,FCD: Skipton House London,66105,Rent,6556550,NHS,NHTDHCORE
Department of Health,Public Health England,DEPARTMENT OF HEALTH,05-Apr-17,5965793,495.19,NULL,HLN4,FCD: Skipton House London,66105,Rent," Accommodation costs (PROFESSIONAL FEES (NR) for Skipton House, 80 London Road, London",NHS,NHTDHCORE
Department of Health,Public Health England,DEPARTMENT OF HEALTH,05-Apr-17,5965793,674.7,NULL,HLN4,FCD: Skipton House London,68140,Sub-contracted Facilities Mgnt," Accommodation costs (ESTATES (NR) for Skipton House, 80 London Road, London",NHS,NHTDHCORE
Department of Health,Public Health England,DEPARTMENT OF HEALTH,05-Apr-17,5965793,1419.55,NULL,HLN4,FCD: Skipton House London,66420,Water," Accommodation costs (WATER)for Skipton House, 80 London Road, London",NHS,NHTDHCORE
Department of Health,Public Health England,DEPARTMENT OF HEALTH,05-Apr-17,5965793,3349.55,NULL,HLN4,FCD: Skipton House London,68140,Sub-contracted Facilities Mgnt,"Accommodation costs (XEROX) for Skipton House, 80 London Road, London",NHS,NHTDHCORE
Department of Health,Public Health England,DEPARTMENT OF HEALTH,05-Apr-17,5965793,3717.73,NULL,HLN4,FCD: Skipton House London,68105,Cleaning Costs,6556550,NHS,NHTDHCORE
Department of Health,Public Health England,DEPARTMENT OF HEALTH,05-Apr-17,5965793,4346.41,NULL,HLN4,FCD: Skipton House London,68110,Security Costs,6556550,NHS,NHTDHCORE
Department of Health,Public Health England,DEPARTMENT OF HEALTH,05-Apr-17,5965793,5357.15,NULL,HLN4,FCD: Skipton House London,66410,Electricity,6556550,NHS,NHTDHCORE
Department of Health,Public Health England,DEPARTMENT OF HEALTH,05-Apr-17,5965793,7551.48,NULL,HLN4,FCD: Skipton House London,68140,Sub-contracted Facilities Mgnt,6556550,NHS,NHTDHCORE
Department of Health,Public Health England,DEPARTMENT OF HEALTH,05-Apr-17,5965793,13433.65,NULL,HLN4,FCD: Skipton House London,68426,Internal Buildings Planned Maintenance,6556550,NHS,NHTDHCORE
Department of Health,Public Health England,DEPARTMENT OF HEALTH,05-Apr-17,5965793,15566.41,NULL,HLN4,FCD: Skipton House London,68140,Sub-contracted Facilities Mgnt,"Accommodation costs (FM) for Skipton House, 80 London Road, London",NHS,NHTDHCORE
Department of Health,Public Health England,DEPARTMENT OF HEALTH,05-Apr-17,5965793,18166.77,NULL,HLN4,FCD: Skipton House London,68140,Sub-contracted Facilities Mgnt,"Accommodation costs (FM (CENTRAL) for Skipton House, 80 London Road, London",NHS,NHTDHCORE
Department of Health,Public Health England,DEPARTMENT OF HEALTH,05-Apr-17,5965793,18588.67,NULL,HLN4,FCD: Skipton House London,68105,Cleaning Costs," Accommodation costs (CLEANING) for Skipton House, 80 London Road, London",NHS,NHTDHCORE
Department of Health,Public Health England,DEPARTMENT OF HEALTH,05-Apr-17,5965793,21732.04,NULL,HLN4,FCD: Skipton House London,68110,Security Costs," Accommodation costs (SECURITY) for Skipton House, 80 London Road, London",NHS,NHTDHCORE
Department of Health,Public Health England,DEPARTMENT OF HEALTH,05-Apr-17,5965793,26785.72,NULL,HLN4,FCD: Skipton House London,66410,Electricity,"Accommodation costs (ELECTRICITY (NR VAT)for Skipton House, 80 London Road, London",NHS,NHTDHCORE
Department of Health,Public Health England,DEPARTMENT OF HEALTH,05-Apr-17,5965793,32609.95,NULL,HLN4,FCD: Skipton House London,68426,Internal Buildings Planned Maintenance," Accommodation costs (BUILDING MAINTENANCE (VARIABLE)for Skipton House, 80 London Road, London",NHS,NHTDHCORE
Department of Health,Public Health England,DEPARTMENT OF HEALTH,05-Apr-17,5965793,34558.26,NULL,HLN4,FCD: Skipton House London,68426,Internal Buildings Planned Maintenance,"Accommodation costs (BUILDING MAINTENANCE (FIXED COSTS)for Skipton House, 80 London Road, London",NHS,NHTDHCORE
Department of Health,Public Health England,DEPARTMENT OF HEALTH,05-Apr-17,5965793,126737.9,NULL,HLN4,FCD: Skipton House London,66110,Rates," Accommodation costs (RATES) for Skipton House, 80 London Road, London",NHS,NHTDHCORE
Department of Health,Public Health England,DEPARTMENT OF HEALTH,05-Apr-17,5965793,340027.66,NULL,HLN4,FCD: Skipton House London,66105,Rent," Accommodation costs (RENT) for Skipton House, 80 London Road, London",NHS,NHTDHCORE
Department of Health,Public Health England,DEPARTMENT OF HEALTH,05-Apr-17,5965817,1227.59,NULL,HLN4,FCD: Skipton House London,68140,Sub-contracted Facilities Mgnt,"Accommodation costs (PROFESSIONAL FEES (NR) for Skipton House, 80 London Road, London",NHS,NHTDHCORE
Department of Health,Public Health England,DEPARTMENT OF HEALTH,05-Apr-17,5965817,1472.56,NULL,HLN4,FCD: Skipton House London,66420,Water,"Accommodation costs (WATER) for Skipton House, 80 London Road, London",NHS,NHTDHCORE
Department of Health,Public Health England,DEPARTMENT OF HEALTH,05-Apr-17,5965817,3349.55,NULL,HLN4,FCD: Skipton House London,68140,Sub-contracted Facilities Mgnt,"Accommodation costs (XEROX) for Skipton House, 80 London Road, London",NHS,NHTDHCORE
Department of Health,Public Health England,DEPARTMENT OF HEALTH,05-Apr-17,5965817,3456.77,NULL,HLN4,FCD: Skipton House London,68105,Cleaning Costs,6556486 NBI,NHS,NHTDHCORE
Department of Health,Public Health England,DEPARTMENT OF HEALTH,05-Apr-17,5965817,4125.25,NULL,HLN4,FCD: Skipton House London,68110,Security Costs,6556486 NBI,NHS,NHTDHCORE
Department of Health,Public Health England,DEPARTMENT OF HEALTH,05-Apr-17,5965817,4524.54,NULL,HLN4,FCD: Skipton House London,68140,Sub-contracted Facilities Mgnt," Accommodation costs (ESTATES (NR) for Skipton House, 80 London Road, London",NHS,NHTDHCORE
Department of Health,Public Health England,DEPARTMENT OF HEALTH,05-Apr-17,5965817,5411.46,NULL,HLN4,FCD: Skipton House London,66410,Electricity,6556486 NBI,NHS,NHTDHCORE
Department of Health,Public Health England,DEPARTMENT OF HEALTH,05-Apr-17,5965817,8602.43,NULL,HLN4,FCD: Skipton House London,68140,Sub-contracted Facilities Mgnt,6556486 NBI,NHS,NHTDHCORE
Department of Health,Public Health England,DEPARTMENT OF HEALTH,05-Apr-17,5965817,10046.11,NULL,HLN4,FCD: Skipton House London,68426,Internal Buildings Planned Maintenance,6556486 NBI,NHS,NHTDHCORE
Department of Health,Public Health England,DEPARTMENT OF HEALTH,05-Apr-17,5965817,15672.29,NULL,HLN4,FCD: Skipton House London,68426,Internal Buildings Planned Maintenance,"Accommodation costs (BUILDING MAINTENANCE (VARIABLE) for Skipton House, 80 London Road, London",NHS,NHTDHCORE
Department of Health,Public Health England,DEPARTMENT OF HEALTH,05-Apr-17,5965817,15743.72,NULL,HLN4,FCD: Skipton House London,68140,Sub-contracted Facilities Mgnt,"Accommodation costs (FM) for Skipton House, 80 London Road, London",NHS,NHTDHCORE
Department of Health,Public Health England,DEPARTMENT OF HEALTH,05-Apr-17,5965817,17283.85,NULL,HLN4,FCD: Skipton House London,68105,Cleaning Costs," Accommodation costs (CLEANING) for Skipton House, 80 London Road, London",NHS,NHTDHCORE
Department of Health,Public Health England,DEPARTMENT OF HEALTH,05-Apr-17,5965817,18166.77,NULL,HLN4,FCD: Skipton House London,68140,Sub-contracted Facilities Mgnt,"Accommodation costs (FM (CENTRAL) for Skipton House, 80 London Road, London",NHS,NHTDHCORE
Department of Health,Public Health England,DEPARTMENT OF HEALTH,05-Apr-17,5965817,20626.23,NULL,HLN4,FCD: Skipton House London,68110,Security Costs,"Accommodation costs (SECURITY) for Skipton House, 80 London Road, London",NHS,NHTDHCORE
Department of Health,Public Health England,DEPARTMENT OF HEALTH,05-Apr-17,5965817,27057.28,NULL,HLN4,FCD: Skipton House London,66410,Electricity,"Accommodation costs (ELECTRICITY (NR VAT) for Skipton House, 80 London Road, London",NHS,NHTDHCORE
Department of Health,Public Health England,DEPARTMENT OF HEALTH,05-Apr-17,5965817,34558.26,NULL,HLN4,FCD: Skipton House London,68426,Internal Buildings Planned Maintenance,"Accommodation costs (BUILDING MAINTENANCE (FIXED COST) for Skipton House, 80 London Road, London",NHS,NHTDHCORE
Department of Health,Public Health England,DEPARTMENT OF HEALTH,05-Apr-17,5965817,126737.9,NULL,HLN4,FCD: Skipton House London,66110,Rates,"Accommodation costs (RATES) for Skipton House, 80 London Road, London",NHS,NHTDHCORE
Department of Health,Public Health England,DEPARTMENT OF HEALTH,05-Apr-17,5965817,340027.66,NULL,HLN4,FCD: Skipton House London,66105,Rent," Accommodation costs (RENT) for Skipton House, 80 London Road, London",NHS,NHTDHCORE
Department of Health,Public Health England,DEPARTMENT OF HEALTH,05-Apr-17,5965819,795.65,NULL,HLN4,FCD: Skipton House London,66405,Gas,6556520 NBI,NHS,NHTDHCORE
Department of Health,Public Health England,DEPARTMENT OF HEALTH,05-Apr-17,5965819,1483,NULL,HLN4,FCD: Skipton House London,68426,Internal Buildings Planned Maintenance," acommodation costs (PHE - GROUND FLOOR WORKS (LANDLORDS CONSENT) for Skipton House, 80 London Road, London",NHS,NHTDHCORE
Department of Health,Public Health England,DEPARTMENT OF HEALTH,05-Apr-17,5965819,1560.53,NULL,HLN4,FCD: Skipton House London,66420,Water," acommodation costs (WATER) for Skipton House, 80 London Road, London",NHS,NHTDHCORE
Department of Health,Public Health England,DEPARTMENT OF HEALTH,05-Apr-17,5965819,3250.09,NULL,HLN4,FCD: Skipton House London,68105,Cleaning Costs,6556520 NBI,NHS,NHTDHCORE
Department of Health,Public Health England,DEPARTMENT OF HEALTH,05-Apr-17,5965819,3349.55,NULL,HLN4,FCD: Skipton House London,68140,Sub-contracted Facilities Mgnt,"acommodation costs (XEROX) for Skipton House, 80 London Road, London",NHS,NHTDHCORE
Department of Health,Public Health England,DEPARTMENT OF HEALTH,05-Apr-17,5965819,3373.5,NULL,HLN4,FCD: Skipton House London,68140,Sub-contracted Facilities Mgnt," acommodation costs (ESTATES) for Skipton House, 80 London Road, London",NHS,NHTDHCORE
Department of Health,Public Health England,DEPARTMENT OF HEALTH,05-Apr-17,5965819,3978.27,NULL,HLN4,FCD: Skipton House London,66405,Gas," acommodation costs (GAS) for Skipton House, 80 London Road, London",NHS,NHTDHCORE
Department of Health,Public Health England,DEPARTMENT OF HEALTH,05-Apr-17,5965819,4088.45,NULL,HLN4,FCD: Skipton House London,68110,Security Costs,6556520 NBI,NHS,NHTDHCORE
Department of Health,Public Health England,DEPARTMENT OF HEALTH,05-Apr-17,5965819,4354.09,NULL,HLN4,FCD: Skipton House London,66410,Electricity,6556520 NBI,NHS,NHTDHCORE
Department of Health,Public Health England,DEPARTMENT OF HEALTH,05-Apr-17,5965819,8031.07,NULL,HLN4,FCD: Skipton House London,68140,Sub-contracted Facilities Mgnt,6556520 NBI,NHS,NHTDHCORE
Department of Health,Public Health England,DEPARTMENT OF HEALTH,05-Apr-17,5965819,8785.43,NULL,HLN4,FCD: Skipton House London,68426,Internal Buildings Planned Maintenance,"acommodation costs (BUILDING MAINTENANCE (REACTIVE) for Skipton House, 80 London Road, London",NHS,NHTDHCORE
Department of Health,Public Health England,DEPARTMENT OF HEALTH,05-Apr-17,5965819,15427.56,NULL,HLN4,FCD: Skipton House London,68140,Sub-contracted Facilities Mgnt," acommodation costs (FM) for Skipton House, 80 London Road, London",NHS,NHTDHCORE
Department of Health,Public Health England,DEPARTMENT OF HEALTH,05-Apr-17,5965819,16250.46,NULL,HLN4,FCD: Skipton House London,68105,Cleaning Costs,"acommodation costs (CLEANING) for Skipton House, 80 London Road, London",NHS,NHTDHCORE
Department of Health,Public Health England,DEPARTMENT OF HEALTH,05-Apr-17,5965819,17985.99,NULL,HLN4,FCD: Skipton House London,68426,Internal Buildings Planned Maintenance,6556520 NBI,NHS,NHTDHCORE
Department of Health,Public Health England,DEPARTMENT OF HEALTH,05-Apr-17,5965819,18004.73,NULL,HLN4,FCD: Skipton House London,68140,Sub-contracted Facilities Mgnt,"acommodation costs (CENTRAL FM) for Skipton House, 80 London Road, London",NHS,NHTDHCORE
Department of Health,Public Health England,DEPARTMENT OF HEALTH,05-Apr-17,5965819,20442.25,NULL,HLN4,FCD: Skipton House London,68110,Security Costs," acommodation costs (SECURITY) for Skipton House, 80 London Road, London",NHS,NHTDHCORE
Department of Health,Public Health England,DEPARTMENT OF HEALTH,05-Apr-17,5965819,21770.47,NULL,HLN4,FCD: Skipton House London,66410,Electricity,"acommodation costs (ELECTRICITY (NR VAT) for Skipton House, 80 London Road, London",NHS,NHTDHCORE
Department of Health,Public Health England,DEPARTMENT OF HEALTH,05-Apr-17,5965819,24497.16,NULL,HLN4,FCD: Skipton House London,68426,Internal Buildings Planned Maintenance," acommodation costs (BUILDING MAINTENANCE (VARIABLE) for Skipton House, 80 London Road, London",NHS,NHTDHCORE
Department of Health,Public Health England,DEPARTMENT OF HEALTH,05-Apr-17,5965819,55164.31,NULL,HLN4,FCD: Skipton House London,68426,Internal Buildings Planned Maintenance," acommodation costs (BUILDING MAINTENANCE) for Skipton House, 80 London Road, London",NHS,NHTDHCORE
Department of Health,Public Health England,DEPARTMENT OF HEALTH,05-Apr-17,5965819,125757.33,NULL,HLN4,FCD: Skipton House London,66110,Rates,"acommodation costs (RATES) for Skipton House, 80 London Road, London",NHS,NHTDHCORE
Department of Health,Public Health England,DEPARTMENT OF HEALTH,05-Apr-17,5965819,340027.68,NULL,HLN4,FCD: Skipton House London,66105,Rent,"acommodation costs (RENT) for Skipton House, 80 London Road, London",NHS,NHTDHCORE
Department of Health,Public Health England,DEPARTMENT OF HEALTH,05-Apr-17,5965825,660.03,NULL,HLN4,FCD: Skipton House London,66405,Gas,6556471 NBI,NHS,NHTDHCORE
Department of Health,Public Health England,DEPARTMENT OF HEALTH,05-Apr-17,5965825,1493.05,NULL,HLN4,FCD: Skipton House London,66420,Water,"Accommodation costs (WATER) for Skipton House, 80 London Road, London",NHS,NHTDHCORE
Department of Health,Public Health England,DEPARTMENT OF HEALTH,05-Apr-17,5965825,2000,NULL,HLN4,FCD: Skipton House London,68426,Internal Buildings Planned Maintenance," Accommodation costs (PHE GROUND FLOOR WORKS (LANDLORD CONSENT) for Skipton House, 80 London Road, London",NHS,NHTDHCORE
Department of Health,Public Health England,DEPARTMENT OF HEALTH,05-Apr-17,5965825,3246.76,NULL,HLN4,FCD: Skipton House London,68105,Cleaning Costs,6556471 NBI,NHS,NHTDHCORE
Department of Health,Public Health England,DEPARTMENT OF HEALTH,05-Apr-17,5965825,3300.16,NULL,HLN4,FCD: Skipton House London,66405,Gas,"Accommodation costs (GAS (NR VAT) for Skipton House, 80 London Road, London",NHS,NHTDHCORE
Department of Health,Public Health England,DEPARTMENT OF HEALTH,05-Apr-17,5965825,3349.55,NULL,HLN4,FCD: Skipton House London,68140,Sub-contracted Facilities Mgnt,"Accommodation costs (XEROX) for Skipton House, 80 London Road, London",NHS,NHTDHCORE
Department of Health,Public Health England,DEPARTMENT OF HEALTH,05-Apr-17,5965825,4122.52,NULL,HLN4,FCD: Skipton House London,68110,Security Costs,6556471 NBI,NHS,NHTDHCORE
Department of Health,Public Health England,DEPARTMENT OF HEALTH,05-Apr-17,5965825,5190.04,NULL,HLN4,FCD: Skipton House London,66410,Electricity,6556471 NBI,NHS,NHTDHCORE
Department of Health,Public Health England,DEPARTMENT OF HEALTH,05-Apr-17,5965825,7412.08,NULL,HLN4,FCD: Skipton House London,68140,Sub-contracted Facilities Mgnt,6556471 NBI,NHS,NHTDHCORE
Department of Health,Public Health England,DEPARTMENT OF HEALTH,05-Apr-17,5965825,12094.28,NULL,HLN4,FCD: Skipton House London,68426,Internal Buildings Planned Maintenance,6556471 NBI,NHS,NHTDHCORE
Department of Health,Public Health England,DEPARTMENT OF HEALTH,05-Apr-17,5965825,15556.13,NULL,HLN4,FCD: Skipton House London,68140,Sub-contracted Facilities Mgnt,"Accommodation costs (FM) for Skipton House, 80 London Road, London",NHS,NHTDHCORE
Department of Health,Public Health England,DEPARTMENT OF HEALTH,05-Apr-17,5965825,16233.83,NULL,HLN4,FCD: Skipton House London,68105,Cleaning Costs," Accommodation costs (CLEANING) for Skipton House, 80 London Road, London",NHS,NHTDHCORE
Department of Health,Public Health England,DEPARTMENT OF HEALTH,05-Apr-17,5965825,18154.77,NULL,HLN4,FCD: Skipton House London,68140,Sub-contracted Facilities Mgnt,"Accommodation costs (CENTRAL FM) for Skipton House, 80 London Road, London",NHS,NHTDHCORE
Department of Health,Public Health England,DEPARTMENT OF HEALTH,05-Apr-17,5965825,20612.6,NULL,HLN4,FCD: Skipton House London,68110,Security Costs," Accommodation costs (SECURITY) for Skipton House, 80 London Road, London",NHS,NHTDHCORE
Department of Health,Public Health England,DEPARTMENT OF HEALTH,05-Apr-17,5965825,24059.99,NULL,HLN4,FCD: Skipton House London,68426,Internal Buildings Planned Maintenance,"Accommodation costs (BUILDING MAINTENANCE(VARIABLE) for Skipton House, 80 London Road, London",NHS,NHTDHCORE
Department of Health,Public Health England,DEPARTMENT OF HEALTH,05-Apr-17,5965825,25950.21,NULL,HLN4,FCD: Skipton House London,66410,Electricity," Accommodation costs (ELECTRICITY (NR VAT) for Skipton House, 80 London Road, London",NHS,NHTDHCORE
Department of Health,Public Health England,DEPARTMENT OF HEALTH,05-Apr-17,5965825,34411.37,NULL,HLN4,FCD: Skipton House London,68426,Internal Buildings Planned Maintenance,"Accommodation costs (BUILDING MAINTENANCE) for Skipton House, 80 London Road, London",NHS,NHTDHCORE
Department of Health,Public Health England,DEPARTMENT OF HEALTH,05-Apr-17,5965825,125757.33,NULL,HLN4,FCD: Skipton House London,66110,Rates,"Accommodation costs (RATES) for Skipton House, 80 London Road, London",NHS,NHTDHCORE
Department of Health,Public Health England,DEPARTMENT OF HEALTH,05-Apr-17,5965825,340027.64,NULL,HLN4,FCD: Skipton House London,66105,Rent," Accommodation costs (RENT) for Skipton House, 80 London Road, London",NHS,NHTDHCORE
Department of Health,Public Health England,DEPARTMENT OF HEALTH,05-Apr-17,5965829,10.99,NULL,HLN4,FCD: Skipton House London,66410,Electricity,"Accommodation costs (ELECTRICITY (ZERO VAT) for Skipton House, 80 London Road, London",NHS,NHTDHCORE
Department of Health,Public Health England,DEPARTMENT OF HEALTH,05-Apr-17,5965829,79.55,NULL,HLN4,FCD: Skipton House London,68160,Property Professional Services,6556467 NBI,NHS,NHTDHCORE
Department of Health,Public Health England,DEPARTMENT OF HEALTH,05-Apr-17,5965829,337.47,NULL,HLN4,FCD: Skipton House London,66405,Gas,6556467 NBI,NHS,NHTDHCORE
Department of Health,Public Health England,DEPARTMENT OF HEALTH,05-Apr-17,5965829,397.77,NULL,HLN4,FCD: Skipton House London,68160,Property Professional Services," Accommodation costs (PROFESSIONAL FEES (NR VAT) for Skipton House, 80 London Road, London",NHS,NHTDHCORE
Department of Health,Public Health England,DEPARTMENT OF HEALTH,05-Apr-17,5965829,1177.85,NULL,HLN4,FCD: Skipton House London,66420,Water," Accommodation costs (WATER) for Skipton House, 80 London Road, London",NHS,NHTDHCORE
Department of Health,Public Health England,DEPARTMENT OF HEALTH,05-Apr-17,5965829,1687.35,NULL,HLN4,FCD: Skipton House London,66405,Gas," Accommodation costs (GAS) for Skipton House, 80 London Road, London",NHS,NHTDHCORE
Department of Health,Public Health England,DEPARTMENT OF HEALTH,05-Apr-17,5965829,2233.04,NULL,HLN4,FCD: Skipton House London,68140,Sub-contracted Facilities Mgnt,"Accommodation costs (XEROX) for Skipton House, 80 London Road, London",NHS,NHTDHCORE
Department of Health,Public Health England,DEPARTMENT OF HEALTH,05-Apr-17,5965829,3190.15,NULL,HLN4,FCD: Skipton House London,68105,Cleaning Costs,6556467 NBI,NHS,NHTDHCORE
Department of Health,Public Health England,DEPARTMENT OF HEALTH,05-Apr-17,5965829,4088.68,NULL,HLN4,FCD: Skipton House London,68110,Security Costs,6556467 NBI,NHS,NHTDHCORE
Department of Health,Public Health England,DEPARTMENT OF HEALTH,05-Apr-17,5965829,5812.52,NULL,HLN4,FCD: Skipton House London,66410,Electricity,6556467 NBI,NHS,NHTDHCORE
Department of Health,Public Health England,DEPARTMENT OF HEALTH,05-Apr-17,5965829,7133.07,NULL,HLN4,FCD: Skipton House London,68140,Sub-contracted Facilities Mgnt,6556467 NBI,NHS,NHTDHCORE
Department of Health,Public Health England,DEPARTMENT OF HEALTH,05-Apr-17,5965829,10106.8,NULL,HLN4,FCD: Skipton House London,68426,Internal Buildings Planned Maintenance,6556467 NBI,NHS,NHTDHCORE
Department of Health,Public Health England,DEPARTMENT OF HEALTH,05-Apr-17,5965829,15427.55,NULL,HLN4,FCD: Skipton House London,68140,Sub-contracted Facilities Mgnt,"Accommodation costs (FM) for Skipton House, 80 London Road, London",NHS,NHTDHCORE
Department of Health,Public Health England,DEPARTMENT OF HEALTH,05-Apr-17,5965829,15950.75,NULL,HLN4,FCD: Skipton House London,68105,Cleaning Costs,"Accommodation costs (CLEANING) for Skipton House, 80 London Road, London",NHS,NHTDHCORE
Department of Health,Public Health England,DEPARTMENT OF HEALTH,05-Apr-17,5965829,16407,NULL,HLN4,FCD: Skipton House London,68426,Internal Buildings Planned Maintenance," Accommodation costs (BUILDING MAINTENANCE (VARIABLE) for Skipton House, 80 London Road, London",NHS,NHTDHCORE
Department of Health,Public Health England,DEPARTMENT OF HEALTH,05-Apr-17,5965829,18004.73,NULL,HLN4,FCD: Skipton House London,68140,Sub-contracted Facilities Mgnt,"Accommodation costs (CENTRAL FM) for Skipton House, 80 London Road, London",NHS,NHTDHCORE
Department of Health,Public Health England,DEPARTMENT OF HEALTH,05-Apr-17,5965829,20443.41,NULL,HLN4,FCD: Skipton House London,68110,Security Costs," Accommodation costs (SECURITY) for Skipton House, 80 London Road, London",NHS,NHTDHCORE
Department of Health,Public Health England,DEPARTMENT OF HEALTH,05-Apr-17,5965829,29062.59,NULL,HLN4,FCD: Skipton House London,66410,Electricity,"Accommodation costs (ELECTRICITY (NR VAT) for Skipton House, 80 London Road, London",NHS,NHTDHCORE
Department of Health,Public Health England,DEPARTMENT OF HEALTH,05-Apr-17,5965829,34126.98,NULL,HLN4,FCD: Skipton House London,68426,Internal Buildings Planned Maintenance,"Accommodation costs (BUILDING MAINTENANCE) for Skipton House, 80 London Road, London",NHS,NHTDHCORE
Department of Health,Public Health England,DEPARTMENT OF HEALTH,05-Apr-17,5965829,125757.33,NULL,HLN4,FCD: Skipton House London,66110,Rates,"Accommodation costs (RATES) for Skipton House, 80 London Road, London",NHS,NHTDHCORE
Department of Health,Public Health England,DEPARTMENT OF HEALTH,05-Apr-17,5965829,340027.66,NULL,HLN4,FCD: Skipton House London,66105,Rent," Accommodation costs (RENT) for Skipton House, 80 London Road, London",NHS,NHTDHCORE
Department of Health,Public Health England,DEPARTMENT OF HEALTH,05-Apr-17,5965839,77.32,NULL,HLN4,FCD: Skipton House London,66410,Electricity," Accommodation costs (ELECTRICITY (ZERO VAT) for Skipton House, 80 London Road, London",NHS,NHTDHCORE
Department of Health,Public Health England,DEPARTMENT OF HEALTH,05-Apr-17,5965839,231.43,NULL,HLN4,FCD: Skipton House London,66405,Gas,6557836 NBI,NHS,NHTDHCORE
Department of Health,Public Health England,DEPARTMENT OF HEALTH,05-Apr-17,5965839,914.76,NULL,HLN4,FCD: Skipton House London,66420,Water,"Accommodation costs (WATER) for Skipton House, 80 London Road, London",NHS,NHTDHCORE
Department of Health,Public Health England,DEPARTMENT OF HEALTH,05-Apr-17,5965839,1157.13,NULL,HLN4,FCD: Skipton House London,66405,Gas,"Accommodation costs (GAS) for Skipton House, 80 London Road, London",NHS,NHTDHCORE
Department of Health,Public Health England,DEPARTMENT OF HEALTH,05-Apr-17,5965839,1729.47,NULL,HLN4,FCD: Skipton House London,68140,Sub-contracted Facilities Mgnt,6557836 NBI,NHS,NHTDHCORE
Department of Health,Public Health England,DEPARTMENT OF HEALTH,05-Apr-17,5965839,3081.52,NULL,HLN4,FCD: Skipton House London,68105,Cleaning Costs,6557836 NBI,NHS,NHTDHCORE
Department of Health,Public Health England,DEPARTMENT OF HEALTH,05-Apr-17,5965839,3901.08,NULL,HLN4,FCD: Skipton House London,68110,Security Costs,6557836 NBI,NHS,NHTDHCORE
Department of Health,Public Health England,DEPARTMENT OF HEALTH,05-Apr-17,5965839,5135.1,NULL,HLN4,FCD: Skipton House London,66410,Electricity,6557836 NBI,NHS,NHTDHCORE
Department of Health,Public Health England,DEPARTMENT OF HEALTH,05-Apr-17,5965839,6206.12,NULL,HLN4,FCD: Skipton House London,68426,Internal Buildings Planned Maintenance,6557836 NBI,NHS,NHTDHCORE
Department of Health,Public Health England,DEPARTMENT OF HEALTH,05-Apr-17,5965839,8647.35,NULL,HLN4,FCD: Skipton House London,68140,Sub-contracted Facilities Mgnt,"Accommodation costs (FM) for Skipton House, 80 London Road, London",NHS,NHTDHCORE
Department of Health,Public Health England,DEPARTMENT OF HEALTH,05-Apr-17,5965839,15407.61,NULL,HLN4,FCD: Skipton House London,68105,Cleaning Costs,"Accommodation costs (CLEANING) for Skipton House, 80 London Road, London",NHS,NHTDHCORE
Department of Health,Public Health England,DEPARTMENT OF HEALTH,05-Apr-17,5965839,19505.39,NULL,HLN4,FCD: Skipton House London,68110,Security Costs,"Accommodation costs (SECURITY) for Skipton House, 80 London Road, London",NHS,NHTDHCORE
Department of Health,Public Health England,DEPARTMENT OF HEALTH,05-Apr-17,5965839,25675.5,NULL,HLN4,FCD: Skipton House London,66410,Electricity,"Accommodation costs (ELECTRICITY) for Skipton House, 80 London Road, London",NHS,NHTDHCORE
Department of Health,Public Health England,DEPARTMENT OF HEALTH,05-Apr-17,5965839,31030.58,NULL,HLN4,FCD: Skipton House London,68426,Internal Buildings Planned Maintenance,"Accommodation costs (BUILDING MAINTENANCE) for Skipton House, 80 London Road, London",NHS,NHTDHCORE
Department of Health,Public Health England,DEPARTMENT OF HEALTH,05-Apr-17,5965839,121255.09,NULL,HLN4,FCD: Skipton House London,66110,Rates,"Accommodation costs (RATES) for Skipton House, 80 London Road, London",NHS,NHTDHCORE
Department of Health,Public Health England,DEPARTMENT OF HEALTH,05-Apr-17,5965839,335038.37,NULL,HLN4,FCD: Skipton House London,66105,Rent,"Accommodation costs (RENT) for Skipton House, 80 London Road, London",NHS,NHTDHCORE
Department of Health,Public Health England,CARDIFF & VALE UNIVERSITY LOCAL HEALTH BOARD,05-Apr-17,5967249,26700,NULL,MLA7,HP: NPIS,54325,Sub-contracted NPIS,NPIS additional income from BUPA and Irish contracts for Cardiff,NHS,WNHT02
Department of Health,Public Health England,CARAT A TRADING DIV OF DENTSU AEGIS UK LIMITED,05-Apr-17,5967342,6370.09,NULL,UMB5,MKT: Ageing Well: AMR,59008,Social Marketing Advertising,6551188,VENDOR,NOT CGA
Department of Health,Public Health England,CARAT A TRADING DIV OF DENTSU AEGIS UK LIMITED,05-Apr-17,5967342,31881.37,NULL,UMB5,MKT: Ageing Well: AMR,59008,Social Marketing Advertising,AMR - All Radio,VENDOR,NOT CGA
Department of Health,Public Health England,CARAT A TRADING DIV OF DENTSU AEGIS UK LIMITED,05-Apr-17,5967414,6705.5,NULL,UMB7,MKT: Winter: Flu and Winter Pressures,59008,Social Marketing Advertising,6547043,VENDOR,NOT CGA
Department of Health,Public Health England,CARAT A TRADING DIV OF DENTSU AEGIS UK LIMITED,05-Apr-17,5967414,33559.07,NULL,UMB7,MKT: Winter: Flu and Winter Pressures,59008,Social Marketing Advertising,RM1051- CARAT Winter Additional Biddable,VENDOR,NOT CGA
Department of Health,Public Health England,CARAT A TRADING DIV OF DENTSU AEGIS UK LIMITED,05-Apr-17,5967420,6612.98,NULL,UMB7,MKT: Winter: Flu and Winter Pressures,59008,Social Marketing Advertising,6537505,VENDOR,NOT CGA
Department of Health,Public Health England,CARAT A TRADING DIV OF DENTSU AEGIS UK LIMITED,05-Apr-17,5967420,33096.08,NULL,UMB7,MKT: Winter: Flu and Winter Pressures,59008,Social Marketing Advertising,RM1051 CARAT- Winter Biddable,VENDOR,NOT CGA
Department of Health,Public Health England,BELIMED SAUTER AG,05-Apr-17,5967562,57360,108908,ZZZA,Balance Sheet,93335,AUC - Land & Buildings,Belimed: Replacement High Containment Autoclave (BIG 038/036) (for RP),VENDOR,NOT CGA
Department of Health,Public Health England,M&C SAATCHI (UK) LTD,05-Apr-17,5967753,14060,NULL,UMB6,MKT: Living Well: Sexual Health,12205,PHE Funding,6560631,VENDOR,NOT CGA
Department of Health,Public Health England,M&C SAATCHI (UK) LTD,05-Apr-17,5967753,70300,NULL,UMB6,MKT: Living Well: Sexual Health,12205,PHE Funding,Sexual Health Campaign - PR Production Costs/2017,VENDOR,NOT CGA
Department of Health,Public Health England,WHITE YOUNG GREEN,05-Apr-17,5967768,8982.86,110298,ZZZA,Balance Sheet,93370,AUC - Professional Services,6543307 NBI,VENDOR,NOT CGA
Department of Health,Public Health England,WHITE YOUNG GREEN,05-Apr-17,5967768,44914.28,110298,ZZZA,Balance Sheet,93370,AUC - Professional Services,P18 H50 Bioscience production of ITT regarding CEN175. Part 1 & 2. Framework parnter T&C apply. CEI 154,VENDOR,NOT CGA
Department of Health,Public Health England,SIMPLY BECAUSE LTD,05-Apr-17,5967940,16777.48,NULL,UMA4,MKT: Ageing Well: Early Diagnosis,59017,Social Marketing Productions Cost,6551514,NULL,NOT CGA
Department of Health,Public Health England,SIMPLY BECAUSE LTD,05-Apr-17,5967940,83887.42,NULL,UMA4,MKT: Ageing Well: Early Diagnosis,59017,Social Marketing Productions Cost,Be Clear on Cancer - generic symptoms campaign event costs,NULL,NOT CGA
Department of Health,Public Health England,BAKER HICKS LIMITED,05-Apr-17,5970332,17999.59,110300,ZZZA,Balance Sheet,93370,AUC - Professional Services,6542495,VENDOR,NOT CGA
Department of Health,Public Health England,BAKER HICKS LIMITED,05-Apr-17,5970332,89997.93,110300,ZZZA,Balance Sheet,93370,AUC - Professional Services,P19 Stage 1 Reports Refresh and Configuration - Deliverables identified in CEN 167. Framework partners T&C apply. CEI151,VENDOR,NOT CGA
Department of Health,Public Health England,BAKER HICKS LIMITED,05-Apr-17,5970350,17115.04,110303,ZZZA,Balance Sheet,93370,AUC - Professional Services,6542506,VENDOR,NOT CGA
Department of Health,Public Health England,BAKER HICKS LIMITED,05-Apr-17,5970350,85575.2,110303,ZZZA,Balance Sheet,93370,AUC - Professional Services,P20 Arrivals Stage 1 Reports Refresh and Configuration - deliverables identified in CEN 172. Framework partner T&C apply. CEI153,VENDOR,NOT CGA
Department of Health,Public Health England,PARALLEL,05-Apr-17,5970478,1520,NULL,KDE3,HI: SHAPE (Strategic Health Asset Planning and Evaluation),54360,Other Outsourced Services,6560155/6560086,VENDOR,NOT CGA
Department of Health,Public Health England,PARALLEL,05-Apr-17,5970478,3000,NULL,KDF8,HI: K&I Staff Resources,54360,Other Outsourced Services,6560155/6560086,VENDOR,NOT CGA
Department of Health,Public Health England,PARALLEL,05-Apr-17,5970478,7600,NULL,KDE3,HI: SHAPE (Strategic Health Asset Planning and Evaluation),54360,Other Outsourced Services,SHAPE Dashboard for London HUDU Phase 2. ECM_4351,VENDOR,NOT CGA
Department of Health,Public Health England,PARALLEL,05-Apr-17,5970478,15000,NULL,KDF8,HI: K&I Staff Resources,54360,Other Outsourced Services,Creation of an STP Atlas to provide an enhanced interactive mapping component for STPs. Contracted via ECM_4351,VENDOR,NOT CGA
Department of Health,Public Health England,2CV LIMITED,05-Apr-17,5972096,11000,NULL,UMB2,MKT: Strategy and Planning,59033,Social Marketing - Focus Groups,6557811,VENDOR,NOT CGA
Department of Health,Public Health England,2CV LIMITED,05-Apr-17,5972096,55000,NULL,UMB2,MKT: Strategy and Planning,59033,Social Marketing - Focus Groups,FRANK Discovery Phase,VENDOR,NOT CGA
Department of Health,Public Health England,CARAT A TRADING DIV OF DENTSU AEGIS UK LIMITED,05-Apr-17,5972436,7490.06,NULL,UMA2,MKT: Starting Well:Start4Life,59002,Social Marketing - Fulfilment,6559843,VENDOR,NOT CGA
Department of Health,Public Health England,CARAT A TRADING DIV OF DENTSU AEGIS UK LIMITED,05-Apr-17,5972436,37485.66,NULL,UMA2,MKT: Starting Well:Start4Life,59002,Social Marketing - Fulfilment,Provision of service: Breastfeeding Bot promotion/ ,VENDOR,NOT CGA
Department of Health,Public Health England,CARAT A TRADING DIV OF DENTSU AEGIS UK LIMITED,05-Apr-17,5972466,9872.15,NULL,UMA4,MKT: Ageing Well: Early Diagnosis,59103,Social Marketing - Digital,6551983,VENDOR,NOT CGA
Department of Health,Public Health England,CARAT A TRADING DIV OF DENTSU AEGIS UK LIMITED,05-Apr-17,5972466,49407.29,NULL,UMA4,MKT: Ageing Well: Early Diagnosis,59103,Social Marketing - Digital,Be Clear on Cancer - generic symptoms campaign Search/Social media costs,VENDOR,NOT CGA
Department of Health,Public Health England,CARAT A TRADING DIV OF DENTSU AEGIS UK LIMITED,05-Apr-17,5972473,23977,NULL,UMA3,MKT: Starting Well: Change4Life,59103,Social Marketing - Digital,6557446,VENDOR,NOT CGA
Department of Health,Public Health England,CARAT A TRADING DIV OF DENTSU AEGIS UK LIMITED,05-Apr-17,5972473,119998.06,NULL,UMA3,MKT: Starting Well: Change4Life,59103,Social Marketing - Digital,Provision of service : C4L Be Food Smart March digital display,VENDOR,NOT CGA
Department of Health,Public Health England,CARAT A TRADING DIV OF DENTSU AEGIS UK LIMITED,05-Apr-17,5972502,6387.19,NULL,UMB5,MKT: Ageing Well: AMR,59008,Social Marketing Advertising,6553249,VENDOR,NOT CGA
Department of Health,Public Health England,CARAT A TRADING DIV OF DENTSU AEGIS UK LIMITED,05-Apr-17,5972502,31965.55,NULL,UMB5,MKT: Ageing Well: AMR,59008,Social Marketing Advertising,AMR - Digital display,VENDOR,NOT CGA
Department of Health,Public Health England,CARAT A TRADING DIV OF DENTSU AEGIS UK LIMITED,05-Apr-17,5972512,34145.65,NULL,UMA3,MKT: Starting Well: Change4Life,59008,Social Marketing Advertising,6545496,VENDOR,NOT CGA
Department of Health,Public Health England,CARAT A TRADING DIV OF DENTSU AEGIS UK LIMITED,05-Apr-17,5972512,170889.3,NULL,UMA3,MKT: Starting Well: Change4Life,59008,Social Marketing Advertising,C4L biddable media,VENDOR,NOT CGA
Department of Health,Public Health England,CARAT A TRADING DIV OF DENTSU AEGIS UK LIMITED,05-Apr-17,5972519,11526.04,NULL,UMB3,MKT: Living Well: One You,59026,Social Marketing - Paid search,6545329,VENDOR,NOT CGA
Department of Health,Public Health England,CARAT A TRADING DIV OF DENTSU AEGIS UK LIMITED,05-Apr-17,5972519,57684.48,NULL,UMB3,MKT: Living Well: One You,59026,Social Marketing - Paid search,OneYou/Food Smart/Adult Nutrition/New year/ New You/Media Buying/,VENDOR,NOT CGA
Department of Health,Public Health England,CARAT A TRADING DIV OF DENTSU AEGIS UK LIMITED,05-Apr-17,5972528,53949.06,NULL,UMA5,MKT: Living Well: Smoke free,59008,Social Marketing Advertising,6557677,VENDOR,NOT CGA
Department of Health,Public Health England,CARAT A TRADING DIV OF DENTSU AEGIS UK LIMITED,05-Apr-17,5972528,269999.44,NULL,UMA5,MKT: Living Well: Smoke free,59008,Social Marketing Advertising,Smokefree/Health Harms March Pilot Biddable/,VENDOR,NOT CGA
Department of Health,Public Health England,CARAT A TRADING DIV OF DENTSU AEGIS UK LIMITED,05-Apr-17,5972581,5986.27,NULL,UMA9,MKT: Ageing Well: Stroke,59103,Social Marketing - Digital,6551771,VENDOR,NOT CGA
Department of Health,Public Health England,CARAT A TRADING DIV OF DENTSU AEGIS UK LIMITED,05-Apr-17,5972581,9999.99,NULL,UMA9,MKT: Ageing Well: Stroke,59103,Social Marketing - Digital,Act Fast Social 2017���������������,VENDOR,NOT CGA
Department of Health,Public Health England,CARAT A TRADING DIV OF DENTSU AEGIS UK LIMITED,05-Apr-17,5972581,19959.58,NULL,UMA9,MKT: Ageing Well: Stroke,59103,Social Marketing - Digital,Act Fast Social 2017,VENDOR,NOT CGA
Department of Health,Public Health England,CARAT A TRADING DIV OF DENTSU AEGIS UK LIMITED,05-Apr-17,5972586,9936.7,NULL,UMA5,MKT: Living Well: Smoke free,59008,Social Marketing Advertising,6557272,VENDOR,NOT CGA
Department of Health,Public Health England,CARAT A TRADING DIV OF DENTSU AEGIS UK LIMITED,05-Apr-17,5972586,49729.88,NULL,UMA5,MKT: Living Well: Smoke free,59008,Social Marketing Advertising,Smokefree/Health Harms Biddable/Pilot Display,VENDOR,NOT CGA
Department of Health,Public Health England,CARAT A TRADING DIV OF DENTSU AEGIS UK LIMITED,05-Apr-17,5972603,4329.71,NULL,UMA3,MKT: Starting Well: Change4Life,59039,Social Marketing - Partnerships,6538663,VENDOR,NOT CGA
Department of Health,Public Health England,CARAT A TRADING DIV OF DENTSU AEGIS UK LIMITED,05-Apr-17,5972603,21668.75,NULL,UMA3,MKT: Starting Well: Change4Life,59039,Social Marketing - Partnerships,My Supermarket partnership,VENDOR,NOT CGA
Department of Health,Public Health England,UNIVERSITY OF WARWICK,05-Apr-17,5972678,26113.6,NULL,KFB4,HI: Risk Factors Intelligence,54360,Other Outsourced Services,CKR041 - Knowledge Dissemination Project with University of Warwick (Wider Determinants),PUBLIC SECTOR COMPANIES,NOT CGA
Department of Health,Public Health England,UNIVERSITY OF NOTTINGHAM,05-Apr-17,5972711,13455,NULL,VEA7,VAC: Vaccines and Countermeasures C&A Programmes,61610,Software Maint & Support Costs,6526886,PUBLIC SECTOR COMPANIES,NOT CGA
Department of Health,Public Health England,UNIVERSITY OF NOTTINGHAM,05-Apr-17,5972711,67275,NULL,VEA7,VAC: Vaccines and Countermeasures C&A Programmes,61610,Software Maint & Support Costs,Query Authoring & Data Extractions Service (PRIMIS),PUBLIC SECTOR COMPANIES,NOT CGA
Department of Health,Public Health England,UNIVERSITY OF BIRMINGHAM,05-Apr-17,5972724,8335.3,110659,EKB0,NIS: Bacteriology Project Centre,47240,Other Subcontracted Lab Servs,6557337,COMPANY,NOT CGA
Department of Health,Public Health England,UNIVERSITY OF BIRMINGHAM,05-Apr-17,5972724,41676.5,110659,EKB0,NIS: Bacteriology Project Centre,47240,Other Subcontracted Lab Servs,Sequencing Service as per quotation reference QT00652 & Contact CT000568,COMPANY,NOT CGA
Department of Health,Public Health England,INFACT UK LTD,05-Apr-17,5972836,41277.6,NULL,AFN9,C&R: HPzone Support Maintenance & Training,61610,Software Maint & Support Costs,6558287,VENDOR,NOT CGA
Department of Health,Public Health England,INFACT UK LTD,05-Apr-17,5972836,206388,NULL,AFN9,C&R: HPzone Support Maintenance & Training,61610,Software Maint & Support Costs,ECM 4574 Support and Maintenance for HPZone,VENDOR,NOT CGA
Department of Health,Public Health England,OVE ARUP & PARTNERS LIMITED,05-Apr-17,5972858,5666.66,110297,ZZZA,Balance Sheet,93370,AUC - Professional Services,6528220,VENDOR,NOT CGA
Department of Health,Public Health England,OVE ARUP & PARTNERS LIMITED,05-Apr-17,5972858,28333.28,110297,ZZZA,Balance Sheet,93370,AUC - Professional Services,Provision of Project Management Services to the Science Hub Programme in accordance with the compensation event instruction (CEI) 121,VENDOR,NOT CGA
Department of Health,Public Health England,AGILENT TECHNOLOGIES LDA UK LTD,05-Apr-17,5972879,5982.08,110867,ZZZA,Balance Sheet,93380,AUC-Capital Grants Income,6558239,VENDOR,NOT CGA
Department of Health,Public Health England,AGILENT TECHNOLOGIES LDA UK LTD,05-Apr-17,5972879,29910.4,110867,ZZZA,Balance Sheet,93380,AUC-Capital Grants Income,"Complete GC triple quad MS system, installation, training and hydrogen generator as per quote. (GB-ER03-217-1334)",VENDOR,NOT CGA
Department of Health,Public Health England,AGILENT TECHNOLOGIES LDA UK LTD,05-Apr-17,5972948,174.84,110821,ZZZA,Balance Sheet,93340,AUC - Plant & Equipment,Agilent:Loading Tips (10pk) Code 5067-5599 as per attached quotation GB-RW-217-5135 dated ,VENDOR,NOT CGA
Department of Health,Public Health England,AGILENT TECHNOLOGIES LDA UK LTD,05-Apr-17,5972948,1620,110821,ZZZA,Balance Sheet,93340,AUC - Plant & Equipment,Agilent: Cross Lab Silver 1yr total Code SYS-TS-4200 as per attached quotation GB-RW-217-5135 dated ,VENDOR,NOT CGA
Department of Health,Public Health England,AGILENT TECHNOLOGIES LDA UK LTD,05-Apr-17,5972948,5243.47,110821,ZZZA,Balance Sheet,93340,AUC - Plant & Equipment,6556990,VENDOR,NOT CGA
Department of Health,Public Health England,AGILENT TECHNOLOGIES LDA UK LTD,05-Apr-17,5972948,24422.5,110821,ZZZA,Balance Sheet,93340,AUC - Plant & Equipment,Agilent: 4200 Tape Station System Code G2991AA as per attached quotation GB-RW-217-5135 dated,VENDOR,NOT CGA
Department of Health,Public Health England,REGENTS OF THE UNIVERSITY OF COLORADO,05-Apr-17,5972968,60235.73,NULL,UIA6,HI: CYP&F: Family Nurse Partnership (FNP),54345,Other Subcontracted Services,Licence fee for Family Nurse Partnership 2016/17. ECM: 2888. Part of schedule 12 of this contract.,OVERSEAS,NOT CGA
Department of Health,Public Health England,REGENTS OF THE UNIVERSITY OF COLORADO,05-Apr-17,5972968,60456.2,NULL,UIA6,HI: CYP&F: Family Nurse Partnership (FNP),54345,Other Subcontracted Services,Licence fee for Family Nurse Partnership 2015/16. ECM: 2888. Part of schedule 12 of this contract,OVERSEAS,NOT CGA
Department of Health,Public Health England,DEPARTMENT FOR EDUCATION (DFE),05-Apr-17,5972989,190.96,NULL,HBM3,FCD: 1st Floor St Philips Place Birmingham,66108,Property Insurance,"Accommodation costs (INSURANCE) for 1st Floor, St Philips Place, Birmingham",PUBLIC SECTOR COMPANIES,DES022
Department of Health,Public Health England,DEPARTMENT FOR EDUCATION (DFE),05-Apr-17,5972989,2697.81,NULL,HBM3,FCD: 1st Floor St Philips Place Birmingham,66107,Property Service Charges,"Accommodation costs (SERVICE CHARGE) for 1st Floor, St Philips Place, Birmingham",PUBLIC SECTOR COMPANIES,DES022
Department of Health,Public Health England,DEPARTMENT FOR EDUCATION (DFE),05-Apr-17,5972989,3242.05,NULL,HBM3,FCD: 1st Floor St Philips Place Birmingham,66105,Rent,"Accommodation costs (PAMU RECHARGE) for 1st Floor, St Philips Place, Birmingham",PUBLIC SECTOR COMPANIES,DES022
Department of Health,Public Health England,DEPARTMENT FOR EDUCATION (DFE),05-Apr-17,5972989,7274.54,NULL,HBM3,FCD: 1st Floor St Philips Place Birmingham,66410,Electricity,"Accommodation costs (UTILITIES) for 1st Floor, St Philips Place, Birmingham",PUBLIC SECTOR COMPANIES,DES022
Department of Health,Public Health England,DEPARTMENT FOR EDUCATION (DFE),05-Apr-17,5972989,27088.73,NULL,HBM3,FCD: 1st Floor St Philips Place Birmingham,66110,Rates,"Accommodation costs (RATES) for 1st Floor, St Philips Place, Birmingham",PUBLIC SECTOR COMPANIES,DES022
Department of Health,Public Health England,DEPARTMENT FOR EDUCATION (DFE),05-Apr-17,5972989,27948.27,NULL,HBM3,FCD: 1st Floor St Philips Place Birmingham,68140,Sub-contracted Facilities Mgnt,"Accommodation costs (FM) for 1st Floor, St Philips Place, Birmingham",PUBLIC SECTOR COMPANIES,DES022
Department of Health,Public Health England,DEPARTMENT FOR EDUCATION (DFE),05-Apr-17,5972989,84702.82,NULL,HBM3,FCD: 1st Floor St Philips Place Birmingham,66105,Rent,"Accommodation costs (RENT) for 1st Floor, St Philips Place, Birmingham",PUBLIC SECTOR COMPANIES,DES022
Department of Health,Public Health England,DEPARTMENT FOR EDUCATION (DFE),05-Apr-17,5972992,1500,NULL,AWS5,FCD: Citygate Newcastle,66130,Car Parking,"Accommodation costs (CAR SPACES) for Citygate, Gallowgate, Newcastle upon Tyne",PUBLIC SECTOR COMPANIES,DES022
Department of Health,Public Health England,DEPARTMENT FOR EDUCATION (DFE),05-Apr-17,5972992,9192.26,NULL,AWS5,FCD: Citygate Newcastle,68140,Sub-contracted Facilities Mgnt,"Accommodation costs (FM) for Citygate, Gallowgate, Newcastle upon Tyne",PUBLIC SECTOR COMPANIES,DES022
Department of Health,Public Health England,DEPARTMENT FOR EDUCATION (DFE),05-Apr-17,5972992,18645.74,NULL,AWS5,FCD: Citygate Newcastle,66110,Rates,"Accommodation costs (RATES) for Citygate, Gallowgate, Newcastle upon Tyne",PUBLIC SECTOR COMPANIES,DES022
Department of Health,Public Health England,DEPARTMENT FOR EDUCATION (DFE),05-Apr-17,5972992,26688.45,NULL,AWS5,FCD: Citygate Newcastle,66107,Property Service Charges," Accommodation costs (SERVICE CHARGE) for Citygate, Gallowgate, Newcastle upon Tyne",PUBLIC SECTOR COMPANIES,DES022
Department of Health,Public Health England,DEPARTMENT FOR EDUCATION (DFE),05-Apr-17,5972992,47904.83,NULL,AWS5,FCD: Citygate Newcastle,66105,Rent,"Accommodation costs (RENT) for Citygate, Gallowgate, Newcastle upon Tyne",PUBLIC SECTOR COMPANIES,DES022
Department of Health,Public Health England,DEPARTMENT FOR EDUCATION (DFE),05-Apr-17,5972998,1826.93,NULL,BZZ5,FCD: Rivergate House Bristol,66107,Property Service Charges,"Accommodation costs (DEPRECIATION FROM SEPT 2016) for 1ST FLOOR - Rivergate House, 2 Rivergate, Bristol",PUBLIC SECTOR COMPANIES,DES022
Department of Health,Public Health England,DEPARTMENT FOR EDUCATION (DFE),05-Apr-17,5972998,3656.57,NULL,BZZ5,FCD: Rivergate House Bristol,66107,Property Service Charges,"Accommodation costs (SERVICE CHARGE) for 1ST FLOOR - Rivergate House, 2 Rivergate, Bristol",PUBLIC SECTOR COMPANIES,DES022
Department of Health,Public Health England,DEPARTMENT FOR EDUCATION (DFE),05-Apr-17,5972998,7616.29,NULL,BZZ5,FCD: Rivergate House Bristol,66110,Rates,"Accommodation costs (PAMU Mgt Recharge) for 1ST FLOOR - Rivergate House, 2 Rivergate, Bristol",PUBLIC SECTOR COMPANIES,DES022
Department of Health,Public Health England,DEPARTMENT FOR EDUCATION (DFE),05-Apr-17,5972998,15721.93,NULL,BZZ5,FCD: Rivergate House Bristol,66410,Electricity,"Accommodation costs (UTILITIES) for 1ST FLOOR - Rivergate House, 2 Rivergate, Bristol",PUBLIC SECTOR COMPANIES,DES022
Department of Health,Public Health England,DEPARTMENT FOR EDUCATION (DFE),05-Apr-17,5972998,48380.27,NULL,BZZ5,FCD: Rivergate House Bristol,68140,Sub-contracted Facilities Mgnt," Accommodation costs (FM) for 1ST FLOOR - Rivergate House, 2 Rivergate, Bristol",PUBLIC SECTOR COMPANIES,DES022
Department of Health,Public Health England,DEPARTMENT FOR EDUCATION (DFE),05-Apr-17,5972998,60641.07,NULL,BZZ5,FCD: Rivergate House Bristol,66110,Rates,"Accommodation costs (RATES) for 1ST FLOOR - Rivergate House, 2 Rivergate, Bristol",PUBLIC SECTOR COMPANIES,DES022
Department of Health,Public Health England,DEPARTMENT FOR EDUCATION (DFE),05-Apr-17,5972998,171978.73,NULL,BZZ5,FCD: Rivergate House Bristol,66105,Rent," Accommodation costs (RENT) for 1ST FLOOR - Rivergate House, 2 Rivergate, Bristol",PUBLIC SECTOR COMPANIES,DES022
Department of Health,Public Health England,DEPARTMENT FOR EDUCATION (DFE),05-Apr-17,5973002,196.01,NULL,HBM2,FCD: 6th Floor St Philips Place Birmingham,66108,Property Insurance," Accommodation costs for (INSURANCE) 6th Floor, 5 St Philip's Place, Birmingham",PUBLIC SECTOR COMPANIES,DES022
Department of Health,Public Health England,DEPARTMENT FOR EDUCATION (DFE),05-Apr-17,5973002,2769.11,NULL,HBM2,FCD: 6th Floor St Philips Place Birmingham,66107,Property Service Charges,"Accommodation costs for (SERVICE CHARGE) 6th Floor, 5 St Philip's Place, Birmingham",PUBLIC SECTOR COMPANIES,DES022
Department of Health,Public Health England,DEPARTMENT FOR EDUCATION (DFE),05-Apr-17,5973002,3242.05,NULL,HBM2,FCD: 6th Floor St Philips Place Birmingham,66105,Rent,"Accommodation costs for (PAMU Mgt Recharge) 6th Floor, 5 St Philip's Place, Birmingham",PUBLIC SECTOR COMPANIES,DES022
Department of Health,Public Health England,DEPARTMENT FOR EDUCATION (DFE),05-Apr-17,5973002,7466.8,NULL,HBM2,FCD: 6th Floor St Philips Place Birmingham,66410,Electricity,"Accommodation costs for (UTILITIES) 6th Floor, 5 St Philip's Place, Birmingham",PUBLIC SECTOR COMPANIES,DES022
Department of Health,Public Health England,DEPARTMENT FOR EDUCATION (DFE),05-Apr-17,5973002,27804.66,NULL,HBM2,FCD: 6th Floor St Philips Place Birmingham,66110,Rates,"Accommodation costs for (RATES) 6th Floor, 5 St Philip's Place, Birmingham",PUBLIC SECTOR COMPANIES,DES022
Department of Health,Public Health England,DEPARTMENT FOR EDUCATION (DFE),05-Apr-17,5973002,28686.91,NULL,HBM2,FCD: 6th Floor St Philips Place Birmingham,68140,Sub-contracted Facilities Mgnt,"Accommodation costs for (FM) 6th Floor, 5 St Philip's Place, Birmingham",PUBLIC SECTOR COMPANIES,DES022
Department of Health,Public Health England,DEPARTMENT FOR EDUCATION (DFE),05-Apr-17,5973002,86941.44,NULL,HBM2,FCD: 6th Floor St Philips Place Birmingham,66105,Rent,"Accommodation costs for (RENT) 6th Floor, 5 St Philip's Place, Birmingham",PUBLIC SECTOR COMPANIES,DES022
Department of Health,Public Health England,ABBOTT INFORMATICS EUROPE LIMITED,05-Apr-17,5973036,11691.6,NULL,DNG1,NIS: FW&E Centre Office,47105,Lab Equipment Repairs and Maintenance,6559901,VENDOR,NOT CGA
Department of Health,Public Health England,ROYAL COLLEGE OF PAEDIATRICS & CHILD HEALTH,05-Apr-17,5973097,25000,NULL,KGA2,HI: Directorate Office,54345,Other Subcontracted Services,GRANT CONTRIBUTION ,PUBLIC SECTOR COMPANIES,NOT CGA
Department of Health,Public Health England,LONDON BOROUGH OF HILLINGDON,05-Apr-17,5973129,99800,NULL,HET2,FCD: T3 Heathrow,66110,Rates,"Rates Demand for accommodation at erminal Three Arrivals, Central Terminal Area, Heathrow Airport, London",TAX AUTHORITY,E5041
Department of Health,Public Health England,UNIVERSITY OF WEST OF ENGLAND,05-Apr-17,5974129,36000,NULL,KDA7,HI: Clinical Epidemiology,54360,Other Outsourced Services,"University of West of England, Honorary Contract. Evaluate the extent of and variation in EoLC across England (Dying Matters) For Contract T&c'S see ""Amendment no 1 to CARAA"" between supplier and PHE dated",PRIVATE SECTOR COMPANIES,NOT CGA
Department of Health,Public Health England,PREVENTX LIMITED,05-Apr-17,5974143,11724.6,NULL,UIB1,HI: SH&HIV: Home Sampling,54345,Other Subcontracted Services,6560413,NULL,NOT CGA
Department of Health,Public Health England,PREVENTX LIMITED,05-Apr-17,5974143,58623,NULL,UIB1,HI: SH&HIV: Home Sampling,54345,Other Subcontracted Services,National Self-Sampling service ECM 3757 (year 2),NULL,NOT CGA
Department of Health,Public Health England,LONDON SCHOOL OF HYGIENE & TROPICAL MEDICINE,05-Apr-17,5974164,14080,NULL,ETK1,NIS: Parasitology Reference Laboratory (Incl Malaria Ref Unit),47240,Other Subcontracted Lab Servs,6511749,PRIVATE SECTOR COMPANIES,NOT CGA
Department of Health,Public Health England,LONDON SCHOOL OF HYGIENE & TROPICAL MEDICINE,05-Apr-17,5974164,70400,NULL,ETK1,NIS: Parasitology Reference Laboratory (Incl Malaria Ref Unit),47240,Other Subcontracted Lab Servs,"QRT3 Malaria Reference Lab-Service Delivery, Claim Period Oct - Dec 2016, Invoice No : As per tender BSP 386 & ECM3850",PRIVATE SECTOR COMPANIES,NOT CGA
Department of Health,Public Health England,M&C SAATCHI (UK) LTD,05-Apr-17,5974245,13000,NULL,UMB3,MKT: Living Well: One You,59027,Social Marketing - Creative development,6561161,VENDOR,NOT CGA
Department of Health,Public Health England,M&C SAATCHI (UK) LTD,05-Apr-17,5974245,65000,NULL,UMB3,MKT: Living Well: One You,59027,Social Marketing - Creative development,One You/ Physical Activity/campaign development cost/,VENDOR,NOT CGA
Department of Health,Public Health England,M&C SAATCHI (UK) LTD,05-Apr-17,5974252,6000,NULL,UGA8,MKT: Data and CRM,59027,Social Marketing - Creative development,6560946,VENDOR,NOT CGA
Department of Health,Public Health England,M&C SAATCHI (UK) LTD,05-Apr-17,5974252,30000,NULL,UGA8,MKT: Data and CRM,59027,Social Marketing - Creative development,provision of a service:C4L 10MSU branding development,VENDOR,NOT CGA
Department of Health,Public Health England,M&C SAATCHI (UK) LTD,05-Apr-17,5974255,40000,NULL,UMA3,MKT: Starting Well: Change4Life,59028,Social Marketing - PR,6560991,VENDOR,NOT CGA
Department of Health,Public Health England,M&C SAATCHI (UK) LTD,05-Apr-17,5974255,200000,NULL,UMA3,MKT: Starting Well: Change4Life,59028,Social Marketing - PR,Provision of service: C4L consumer engagement,VENDOR,NOT CGA
Department of Health,Public Health England,VODAFONE LIMITED,05-Apr-17,5974277,10792.92,NULL,VEA6,VAC: Vaccines and Countermeasures Panflu Programmes,54360,Other Outsourced Services,6538765,VENDOR,NOT CGA
Department of Health,Public Health England,VODAFONE LIMITED,05-Apr-17,5974277,53964.58,NULL,VEA6,VAC: Vaccines and Countermeasures Panflu Programmes,54360,Other Outsourced Services,National Pandemic Flu Service (NPFS) Core telephony support ,VENDOR,NOT CGA
Department of Health,Public Health England,BETTER VALUE HEALTHCARE LTD,05-Apr-17,5974409,8279.8,NULL,UPA1,HI: HP Centre Wellbeing & MH,54360,Other Outsourced Services,6561406,NULL,NOT CGA
Department of Health,Public Health England,BETTER VALUE HEALTHCARE LTD,05-Apr-17,5974409,41399,NULL,UPA1,HI: HP Centre Wellbeing & MH,54360,Other Outsourced Services,"Tender ITT_2631, 'Nationally Significant Infrastructure Projects Health and Wellbeing Consultation Tool'.",NULL,NOT CGA
Department of Health,Public Health England,BAKER HICKS LIMITED,05-Apr-17,5974413,16752.1,110304,ZZZA,Balance Sheet,93370,AUC - Professional Services,6542721,VENDOR,NOT CGA
Department of Health,Public Health England,BAKER HICKS LIMITED,05-Apr-17,5974413,83760.52,110304,ZZZA,Balance Sheet,93370,AUC - Professional Services,P23 Stage 1 Reports Refresh and Configuration deliverables identified in CEN165. Framework partner T&C apply. CEI145,VENDOR,NOT CGA
Department of Health,Public Health England,BAKER HICKS LIMITED,05-Apr-17,5974417,21596.69,110300,ZZZA,Balance Sheet,93370,AUC - Professional Services,6542495,VENDOR,NOT CGA
Department of Health,Public Health England,BAKER HICKS LIMITED,05-Apr-17,5974417,107983.43,110300,ZZZA,Balance Sheet,93370,AUC - Professional Services,P19 Stage 1 Reports Refresh and Configuration - Deliverables identified in CEN 167. Framework partners T&C apply. CEI151,VENDOR,NOT CGA
Department of Health,Public Health England,BAKER HICKS LIMITED,05-Apr-17,5974424,22172.47,110303,ZZZA,Balance Sheet,93370,AUC - Professional Services,6542506,VENDOR,NOT CGA
Department of Health,Public Health England,BAKER HICKS LIMITED,05-Apr-17,5974424,110862.34,110303,ZZZA,Balance Sheet,93370,AUC - Professional Services,P20 Arrivals Stage 1 Reports Refresh and Configuration - deliverables identified in CEN 172. Framework partner T&C apply. CEI153,VENDOR,NOT CGA
Department of Health,Public Health England,CALDER CONFERENCES LTD,05-Apr-17,5974522,28775.69,110636,JKF0,HP: ERD Core Activities Project Centre,66115,Accommodation Hire,EDREX Third Full Planning Meeting,VENDOR,NOT CGA
Department of Health,Public Health England,DEPARTMENT OF HEALTH,05-Apr-17,5974534,112.15,NULL,HLN4,FCD: Skipton House London,68150,Property Legal Costs,6557720,NHS,NHTDHCORE
Department of Health,Public Health England,DEPARTMENT OF HEALTH,05-Apr-17,5974534,161.83,NULL,HLN4,FCD: Skipton House London,68150,Property Legal Costs,"Accommodation costs (LEGAL FEE) for Skipton House, 80 London Road, London",NHS,NHTDHCORE
Department of Health,Public Health England,DEPARTMENT OF HEALTH,05-Apr-17,5974534,398.88,NULL,HLN4,FCD: Skipton House London,68150,Property Legal Costs," Accommodation costs (LANDLORDS LICENCE) for Skipton House, 80 London Road, London",NHS,NHTDHCORE
Department of Health,Public Health England,DEPARTMENT OF HEALTH,05-Apr-17,5974534,719.59,NULL,HLN4,FCD: Skipton House London,66405,Gas,6557720,NHS,NHTDHCORE
Department of Health,Public Health England,DEPARTMENT OF HEALTH,05-Apr-17,5974534,914.76,NULL,HLN4,FCD: Skipton House London,66420,Water,"Accommodation costs (WATER) for Skipton House, 80 London Road, London",NHS,NHTDHCORE
Department of Health,Public Health England,DEPARTMENT OF HEALTH,05-Apr-17,5974534,2062.43,NULL,HLN4,FCD: Skipton House London,68140,Sub-contracted Facilities Mgnt,6557720,NHS,NHTDHCORE
Department of Health,Public Health England,DEPARTMENT OF HEALTH,05-Apr-17,5974534,3054.83,NULL,HLN4,FCD: Skipton House London,68105,Cleaning Costs,6557720,NHS,NHTDHCORE
Department of Health,Public Health England,DEPARTMENT OF HEALTH,05-Apr-17,5974534,3597.96,NULL,HLN4,FCD: Skipton House London,66405,Gas,"Accommodation costs (GAS) for Skipton House, 80 London Road, London",NHS,NHTDHCORE
Department of Health,Public Health England,DEPARTMENT OF HEALTH,05-Apr-17,5974534,3933.59,NULL,HLN4,FCD: Skipton House London,68110,Security Costs,6557720,NHS,NHTDHCORE
Department of Health,Public Health England,DEPARTMENT OF HEALTH,05-Apr-17,5974534,4554.46,NULL,HLN4,FCD: Skipton House London,66410,Electricity,6557720,NHS,NHTDHCORE
Department of Health,Public Health England,DEPARTMENT OF HEALTH,05-Apr-17,5974534,6322.16,NULL,HLN4,FCD: Skipton House London,68426,Internal Buildings Planned Maintenance,6557720,NHS,NHTDHCORE
Department of Health,Public Health England,DEPARTMENT OF HEALTH,05-Apr-17,5974534,10312.16,NULL,HLN4,FCD: Skipton House London,68140,Sub-contracted Facilities Mgnt,"Accommodation costs (FM) for Skipton House, 80 London Road, London",NHS,NHTDHCORE
Department of Health,Public Health England,DEPARTMENT OF HEALTH,05-Apr-17,5974534,15274.14,NULL,HLN4,FCD: Skipton House London,68105,Cleaning Costs,"Accommodation costs (CLEANING) for Skipton House, 80 London Road, London",NHS,NHTDHCORE
Department of Health,Public Health England,DEPARTMENT OF HEALTH,05-Apr-17,5974534,19667.94,NULL,HLN4,FCD: Skipton House London,68110,Security Costs,"Accommodation costs (SECURITY) for Skipton House, 80 London Road, London",NHS,NHTDHCORE
Department of Health,Public Health England,DEPARTMENT OF HEALTH,05-Apr-17,5974534,22772.29,NULL,HLN4,FCD: Skipton House London,66410,Electricity,"Accommodation costs (ELECTRICITY) for Skipton House, 80 London Road, London",NHS,NHTDHCORE
Department of Health,Public Health England,DEPARTMENT OF HEALTH,05-Apr-17,5974534,31610.79,NULL,HLN4,FCD: Skipton House London,68426,Internal Buildings Planned Maintenance,"Accommodation costs (BUILDING MAINTENANCE) for Skipton House, 80 London Road, London",NHS,NHTDHCORE
Department of Health,Public Health England,DEPARTMENT OF HEALTH,05-Apr-17,5974534,112882.11,NULL,HLN4,FCD: Skipton House London,66110,Rates,"Accommodation costs (RATES) for Skipton House, 80 London Road, London",NHS,NHTDHCORE
Department of Health,Public Health England,DEPARTMENT OF HEALTH,05-Apr-17,5974534,335038.37,NULL,HLN4,FCD: Skipton House London,66105,Rent,"Accommodation costs (RENT) for Skipton House, 80 London Road, London",NHS,NHTDHCORE
Department of Health,Public Health England,DEFINE,05-Apr-17,5974686,8000,NULL,UMB2,MKT: Strategy and Planning,59033,Social Marketing - Focus Groups,6560449,VENDOR,NOT CGA
Department of Health,Public Health England,DEFINE,05-Apr-17,5974686,40000,NULL,UMB2,MKT: Strategy and Planning,59033,Social Marketing - Focus Groups,S4L weaning strategic research,VENDOR,NOT CGA
Department of Health,Public Health England,DEFINE,05-Apr-17,5974690,7230,NULL,UMA3,MKT: Starting Well: Change4Life,59030,Social Marketing - Tracking Research,6560554,VENDOR,NOT CGA
Department of Health,Public Health England,DEFINE,05-Apr-17,5974690,36150,NULL,UMA3,MKT: Starting Well: Change4Life,59030,Social Marketing - Tracking Research,Provision of service:lunchbox research/ C4L/ 2017/ ,VENDOR,NOT CGA
Department of Health,Public Health England,DEFINE,05-Apr-17,5974699,4470,NULL,UMB2,MKT: Strategy and Planning,59033,Social Marketing - Focus Groups,6557739,VENDOR,NOT CGA
Department of Health,Public Health England,DEFINE,05-Apr-17,5974699,22350,NULL,UMB2,MKT: Strategy and Planning,59033,Social Marketing - Focus Groups,AMR evaluation qual with health care professionals,VENDOR,NOT CGA
Department of Health,Public Health England,DEFINE,05-Apr-17,5974703,6250,NULL,UMB2,MKT: Strategy and Planning,59027,Social Marketing - Creative development,6560445,VENDOR,NOT CGA
Department of Health,Public Health England,DEFINE,05-Apr-17,5974703,31250,NULL,UMB2,MKT: Strategy and Planning,59027,Social Marketing - Creative development,C4L volume exploratory campaign development,VENDOR,NOT CGA
Department of Health,Public Health England,KR ANALYTICAL LIMITED,05-Apr-17,5974750,2500,110779,ZZZA,Balance Sheet,93340,AUC - Plant & Equipment,Oil free compressor,VENDOR,NOT CGA
Department of Health,Public Health England,KR ANALYTICAL LIMITED,05-Apr-17,5974750,5984,110779,ZZZA,Balance Sheet,93340,AUC - Plant & Equipment,6560023,VENDOR,NOT CGA
Department of Health,Public Health England,KR ANALYTICAL LIMITED,05-Apr-17,5974750,27420,110779,ZZZA,Balance Sheet,93340,AUC - Plant & Equipment,Suncollect tissue preparation device and peripherals for MALDi imaging as quoted in REF 1703001,VENDOR,NOT CGA
Department of Health,Public Health England,VODAFONE LIMITED,05-Apr-17,5974997,11.08,NULL,SHE4,COO: Health Protection Hants IOW Dorset,35305,Training,07711985007-,VENDOR,NOT CGA
Department of Health,Public Health England,LIVERPOOL CITY COUNCIL,05-Apr-17,5975064,79672.02,NULL,HLP3,FCD: Cunard Building Liverpool,66110,Rates, Rates Demand for Cunard Building Liverpool,TAX AUTHORITY,E4302
Department of Health,Public Health England,HEATHROW AIRPORT LIMITED,05-Apr-17,5978157,198.76,NULL,HET2,FCD: T3 Heathrow,66410,Electricity,6560997,VENDOR,NOT CGA
Department of Health,Public Health England,HEATHROW AIRPORT LIMITED,05-Apr-17,5978157,993.78,NULL,HET2,FCD: T3 Heathrow,66410,Electricity,T3 Arrivals Building- Heating,VENDOR,NOT CGA
Department of Health,Public Health England,HEATHROW AIRPORT LIMITED,05-Apr-17,5978157,1586.74,NULL,HET2,FCD: T3 Heathrow,68105,Cleaning Costs,6560997,VENDOR,NOT CGA
Department of Health,Public Health England,HEATHROW AIRPORT LIMITED,05-Apr-17,5978157,7933.7,NULL,HET2,FCD: T3 Heathrow,68105,Cleaning Costs,T3 Arrivals Building- Refuse and maintenance,VENDOR,NOT CGA
Department of Health,Public Health England,HEATHROW AIRPORT LIMITED,05-Apr-17,5978157,9452.1,NULL,HET2,FCD: T3 Heathrow,66105,Rent,6560997,VENDOR,NOT CGA
Department of Health,Public Health England,HEATHROW AIRPORT LIMITED,05-Apr-17,5978157,47260.5,NULL,HET2,FCD: T3 Heathrow,66105,Rent,T3 Arrivals Building- Rent,VENDOR,NOT CGA
Department of Health,Public Health England,TNS UK LIMITED,05-Apr-17,5978185,4190.93,NULL,UMA8,MKT: Partnerships,59030,Social Marketing - Tracking Research,65550716,VENDOR,NOT CGA
Department of Health,Public Health England,TNS UK LIMITED,05-Apr-17,5978185,20954.63,NULL,UMA8,MKT: Partnerships,59030,Social Marketing - Tracking Research,Tracking Evaluation for Vape Shop poster Health Harms,VENDOR,NOT CGA
Department of Health,Public Health England,BIOMERIEUX LIMITED,05-Apr-17,5978199,22800,110219,ZZZA,Balance Sheet,93340,AUC - Plant & Equipment,6561602,VENDOR,NOT CGA
Department of Health,Public Health England,BIOMERIEUX LIMITED,05-Apr-17,5978199,114000,110219,ZZZA,Balance Sheet,93340,AUC - Plant & Equipment,"elements relating to original project set up, reconfiguration and installation of the WASP LAB project at PHE Birmingham due to complexities. to be paid this financial year",VENDOR,NOT CGA
Department of Health,Public Health England,WOLF LABORATORIES LTD,05-Apr-17,5978232,31350.2,110781,ZZZA,Balance Sheet,93340,AUC - Plant & Equipment,6557099,VENDOR,NOT CGA
Department of Health,Public Health England,WOLF LABORATORIES LTD,05-Apr-17,5978232,156751,110781,ZZZA,Balance Sheet,93340,AUC - Plant & Equipment,Capital project 170443 for Class iii Microbiological Safety cabinets (Replacements),VENDOR,NOT CGA
Department of Health,Public Health England,COREAZURE LIMITED,05-Apr-17,5978273,12864.75,110829,ZZZA,Balance Sheet,93370,AUC - Professional Services,6558194,VENDOR,NOT CGA
Department of Health,Public Health England,COREAZURE LIMITED,05-Apr-17,5978273,64323.75,110829,ZZZA,Balance Sheet,93370,AUC - Professional Services,Windows 10 Security Requirements work,VENDOR,NOT CGA
Department of Health,Public Health England,M&C SAATCHI (UK) LTD,05-Apr-17,5978297,5320,NULL,UMA8,MKT: Partnerships,59027,Social Marketing - Creative development,6561451,VENDOR,NOT CGA
Department of Health,Public Health England,M&C SAATCHI (UK) LTD,05-Apr-17,5978297,26600,NULL,UMA8,MKT: Partnerships,59027,Social Marketing - Creative development,23 Red via M&C Saatchi: Change4Life on demand digital resources,VENDOR,NOT CGA
Department of Health,Public Health England,M&C SAATCHI (UK) LTD,05-Apr-17,5978299,10479.2,NULL,UMB3,MKT: Living Well: One You,59028,Social Marketing - PR,6520574,VENDOR,NOT CGA
Department of Health,Public Health England,M&C SAATCHI (UK) LTD,05-Apr-17,5978299,52396,NULL,UMB3,MKT: Living Well: One You,59028,Social Marketing - PR,One You/Physical Activity consumer engagement/,VENDOR,NOT CGA
Department of Health,Public Health England,UNIVERSITY OF SOUTHAMPTON,05-Apr-17,5978303,5000,NULL,UBA1,HI: D&A: Alcohol,54360,Other Outsourced Services,6558004 NO VAT ON INVOICE - NOT ENOUGH ON PO,PUBLIC SECTOR COMPANIES,NOT CGA
Department of Health,Public Health England,UNIVERSITY OF SOUTHAMPTON,05-Apr-17,5978303,25000,NULL,UBA1,HI: D&A: Alcohol,54360,Other Outsourced Services,Work on Reviewing and refreshing the 12 questions tool� project,PUBLIC SECTOR COMPANIES,NOT CGA
Department of Health,Public Health England,OGILVYONE,05-Apr-17,5978332,7200,NULL,UMA8,MKT: Partnerships,59103,Social Marketing - Digital,6561479,VENDOR,NOT CGA
Department of Health,Public Health England,OGILVYONE,05-Apr-17,5978332,36000,NULL,UMA8,MKT: Partnerships,59103,Social Marketing - Digital,Display and case study gallery area,VENDOR,NOT CGA
Department of Health,Public Health England,OGILVYONE,05-Apr-17,5978334,8798.4,NULL,UGA8,MKT: Data and CRM,59103,Social Marketing - Digital,6560437,VENDOR,NOT CGA
Department of Health,Public Health England,OGILVYONE,05-Apr-17,5978334,43992,NULL,UGA8,MKT: Data and CRM,59103,Social Marketing - Digital,ECM 404 Ogilvy Fees February,VENDOR,NOT CGA
Department of Health,Public Health England,OGILVYONE,05-Apr-17,5978336,6000,NULL,UMA8,MKT: Partnerships,59103,Social Marketing - Digital,6560401,VENDOR,NOT CGA
Department of Health,Public Health England,OGILVYONE,05-Apr-17,5978336,30000,NULL,UMA8,MKT: Partnerships,59103,Social Marketing - Digital,Case Study Creation on CRC,VENDOR,NOT CGA
Department of Health,Public Health England,OGILVYONE,05-Apr-17,5978338,8800,NULL,UMA8,MKT: Partnerships,59103,Social Marketing - Digital,6561404,VENDOR,NOT CGA
Department of Health,Public Health England,OGILVYONE,05-Apr-17,5978338,44000,NULL,UMA8,MKT: Partnerships,59103,Social Marketing - Digital,Analysis of user survey feedback + technical development,VENDOR,NOT CGA
Department of Health,Public Health England,OGILVYONE,05-Apr-17,5978343,4200,NULL,UMA2,MKT: Starting Well:Start4Life,59008,Social Marketing Advertising,6558501,VENDOR,NOT CGA
Department of Health,Public Health England,OGILVYONE,05-Apr-17,5978343,21000,NULL,UMA2,MKT: Starting Well:Start4Life,59008,Social Marketing Advertising,Provision of service:Start4Life Breastfeeding bot - Discovery,VENDOR,NOT CGA
Department of Health,Public Health England,OPTIMUM GROUP SERVICE PLC,05-Apr-17,5978596,10540.6,110745,ZZZA,Balance Sheet,93335,AUC - Land & Buildings,6550856,VENDOR,NOT CGA
Department of Health,Public Health England,OPTIMUM GROUP SERVICE PLC,05-Apr-17,5978596,52703,110745,ZZZA,Balance Sheet,93335,AUC - Land & Buildings,"Q29607/NK	Boiler HS Controls - Carry out works as per quote",VENDOR,NOT CGA
Department of Health,Public Health England,OPTIMUM GROUP SERVICE PLC,05-Apr-17,5978598,8964.33,110556,ZZZA,Balance Sheet,93335,AUC - Land & Buildings,6522595,VENDOR,NOT CGA
Department of Health,Public Health England,OPTIMUM GROUP SERVICE PLC,05-Apr-17,5978598,44821.67,110556,ZZZA,Balance Sheet,93335,AUC - Land & Buildings,To undertake works as specified within document ECM 3961 (2124 Framework) - PHE Corporate - Replacement of mixing boxes to Zone A Level 2 Colindale,VENDOR,NOT CGA
Department of Health,Public Health England,BOSTOCK MARKETING GROUP LTD,05-Apr-17,5978659,10405,NULL,VEA7,VAC: Vaccines and Countermeasures C&A Programmes,59030,Social Marketing - Tracking Research,6429458,NULL,NOT CGA
Department of Health,Public Health England,BOSTOCK MARKETING GROUP LTD,05-Apr-17,5978659,52025,NULL,VEA7,VAC: Vaccines and Countermeasures C&A Programmes,59030,Social Marketing - Tracking Research,"Immunisation Attitudinal Research Survey () - Year 3 P310 (PSB-3892), Approved by FAP",NULL,NOT CGA
Department of Health,Public Health England,CADENCE PARTNERSHIP LLP,05-Apr-17,5978739,28676.25,NULL,PLV1,FCD: Procurement Team,54360,Other Outsourced Services,6561895,VENDOR,NOT CGA
Department of Health,Public Health England,CADENCE PARTNERSHIP LLP,05-Apr-17,5978739,143381.25,NULL,PLV1,FCD: Procurement Team,54360,Other Outsourced Services,Cadence Partnership PaaS - �Procurement as a Service� costs to support 48 discreet ICT and Digital projects.,VENDOR,NOT CGA
Department of Health,Public Health England,SIMPLY BECAUSE LTD,05-Apr-17,5978750,9521.8,NULL,UMA4,MKT: Ageing Well: Early Diagnosis,59008,Social Marketing Advertising,6551989,NULL,NOT CGA
Department of Health,Public Health England,SIMPLY BECAUSE LTD,05-Apr-17,5978750,47609,NULL,UMA4,MKT: Ageing Well: Early Diagnosis,59008,Social Marketing Advertising,Be Clear on Cancer - generic symptoms campaign event costs,NULL,NOT CGA
Department of Health,Public Health England,M&C SAATCHI (UK) LTD,05-Apr-17,5980084,10343.4,NULL,UMA2,MKT: Starting Well:Start4Life,59008,Social Marketing Advertising,6561026,VENDOR,NOT CGA
Department of Health,Public Health England,M&C SAATCHI (UK) LTD,05-Apr-17,5980084,51717,NULL,UMA2,MKT: Starting Well:Start4Life,59008,Social Marketing Advertising,Provision of service: Breastfeeding production costs,VENDOR,NOT CGA
Department of Health,Public Health England,OXFORD CITY COUNCIL,05-Apr-17,5980120,46307.82,NULL,HOX1,FCD: Chancellor Court Oxford,66110,Rates,Non- Domestic rate for Chancellor Court Oxford- Calculation from 01 .04.2017 t6 31.03.2018 (365 days) Transition applies to Effective RV ,NULL,NOT CGA
Department of Health,Public Health England,MATRIX INSIGHT LTD T/A OPTIMITY ADVISORS,05-Apr-17,5980129,8000,NULL,KDA4,STR: Health Economics,54110,Consultancy Fees,6547273,NULL,NOT CGA
Department of Health,Public Health England,MATRIX INSIGHT LTD T/A OPTIMITY ADVISORS,05-Apr-17,5980129,40000,NULL,KDA4,STR: Health Economics,54110,Consultancy Fees,Health Economics : Estimation of benefits from moving an individual from unemployment into sustainable employment.,NULL,NOT CGA
Department of Health,Public Health England,OGILVYONE,05-Apr-17,5980180,4551.25,NULL,UMA3,MKT: Starting Well: Change4Life,59103,Social Marketing - Digital,6556157,VENDOR,NOT CGA
Department of Health,Public Health England,OGILVYONE,05-Apr-17,5980180,22756.25,NULL,UMA3,MKT: Starting Well: Change4Life,59103,Social Marketing - Digital,provision of service : Always on data planning and evaluation,VENDOR,NOT CGA
Department of Health,Public Health England,PREVENTX LIMITED,05-Apr-17,5980246,12389.6,NULL,UIB1,HI: SH&HIV: Home Sampling,54360,Other Outsourced Services,6499445,NULL,NOT CGA
Department of Health,Public Health England,PREVENTX LIMITED,05-Apr-17,5980246,61948,NULL,UIB1,HI: SH&HIV: Home Sampling,54360,Other Outsourced Services,National Self-Sampling service approved related to PO6499445. ECM 3757 (year 2) Associated PO 6507054,NULL,NOT CGA
Department of Health,Public Health England,MISCO COMPUTER SUPPLIES LTD,05-Apr-17,5980326,10072.72,110818,ZZZA,Balance Sheet,93350,AUC - IT Equipment,6558248,VENDOR,NOT CGA
Department of Health,Public Health England,MISCO COMPUTER SUPPLIES LTD,05-Apr-17,5980326,50363.6,110818,ZZZA,Balance Sheet,93350,AUC - IT Equipment,Combined software and hardware to increase the capacity of DDN SFA10k-k-M HPC storage,VENDOR,NOT CGA
Department of Health,Public Health England,CAMPBELL AND KENNEDY LIMITED,05-Apr-17,5980339,8980,110784,ZZZA,Balance Sheet,93335,AUC - Land & Buildings,6561797,NULL,NOT CGA
Department of Health,Public Health England,CAMPBELL AND KENNEDY LIMITED,05-Apr-17,5980339,44900,110784,ZZZA,Balance Sheet,93335,AUC - Land & Buildings,ECM 4664 - itt_2676 - carry out works as per tender,NULL,NOT CGA
Department of Health,Public Health England,MISCO COMPUTER SUPPLIES LTD,05-Apr-17,5980341,5565.2,110818,ZZZA,Balance Sheet,93350,AUC - IT Equipment,6558248,VENDOR,NOT CGA
Department of Health,Public Health England,MISCO COMPUTER SUPPLIES LTD,05-Apr-17,5980341,27825.98,110818,ZZZA,Balance Sheet,93350,AUC - IT Equipment,Combined software and hardware to increase the capacity of DDN SFA10k-k-M HPC storage,VENDOR,NOT CGA
Department of Health,Public Health England,DEPARTMENT OF HEALTH,05-Apr-17,5980342,17579.2,NULL,HNT5,FCD: Seaton House Nottingham,66110,Rates,"DoH, Seaton House - Business rates -",NHS,NHTDHCORE
Department of Health,Public Health England,DEPARTMENT OF HEALTH,05-Apr-17,5980342,21600,NULL,HNT5,FCD: Seaton House Nottingham,66107,Property Service Charges,"DoH, Seaton House - Cleaning Charges -",NHS,NHTDHCORE
Department of Health,Public Health England,MISCO COMPUTER SUPPLIES LTD,05-Apr-17,5980346,14248.55,110854,ZZZA,Balance Sheet,93350,AUC - IT Equipment,6560624,VENDOR,NOT CGA
Department of Health,Public Health England,MISCO COMPUTER SUPPLIES LTD,05-Apr-17,5980346,71242.73,110854,ZZZA,Balance Sheet,93350,AUC - IT Equipment,High performance storage expansion for Lustre ES7k - for full details please see the attached documents,VENDOR,NOT CGA
Department of Health,Public Health England,TNS UK LIMITED,05-Apr-17,5980411,5500,NULL,UMA3,MKT: Starting Well: Change4Life,59030,Social Marketing - Tracking Research,6560590,VENDOR,NOT CGA
Department of Health,Public Health England,TNS UK LIMITED,05-Apr-17,5980411,27500,NULL,UMA3,MKT: Starting Well: Change4Life,59030,Social Marketing - Tracking Research,Provision of service: Kantar data for Be Food Smart,VENDOR,NOT CGA
Department of Health,Public Health England,LAMBERT SMITH HAMPTON,05-Apr-17,5980417,9703.13,NULL,BTN5,FCD: Collingwood Rd Witham,66110,Rates,Harlow - Rates ,NULL,NOT CGA
Department of Health,Public Health England,LAMBERT SMITH HAMPTON,05-Apr-17,5980417,10048.13,NULL,BTN5,FCD: Collingwood Rd Witham,66107,Property Service Charges,Harlow - Service Charge,NULL,NOT CGA
Department of Health,Public Health England,LAMBERT SMITH HAMPTON,05-Apr-17,5980417,14375,NULL,BTN5,FCD: Collingwood Rd Witham,66105,Rent,Harlow - Rent in Advance ,NULL,NOT CGA
Department of Health,Public Health England,MEC,05-Apr-17,5980437,6000,NULL,UMA4,MKT: Ageing Well: Early Diagnosis,59103,Social Marketing - Digital,6558958,VENDOR,NOT CGA
Department of Health,Public Health England,MEC,05-Apr-17,5980437,30000,NULL,UMA4,MKT: Ageing Well: Early Diagnosis,59103,Social Marketing - Digital,ECM 3124 MEC Be Clear on Cancer - Always on - social planning and development,VENDOR,NOT CGA
Department of Health,Public Health England,NCSCT COMMUNITY INTEREST COMPANY,05-Apr-17,5980493,10120.13,NULL,UBB1,HI: Tobacco Control,54360,Other Outsourced Services,6528512,VENDOR,NOT CGA
Department of Health,Public Health England,NCSCT COMMUNITY INTEREST COMPANY,05-Apr-17,5980493,50600.66,NULL,UBB1,HI: Tobacco Control,54360,Other Outsourced Services,Smoking Cessation Practitioner Training and Assessment programmes - NCSCT,VENDOR,NOT CGA
Department of Health,Public Health England,NCSCT COMMUNITY INTEREST COMPANY,05-Apr-17,5980496,10120.13,NULL,UBB1,HI: Tobacco Control,54360,Other Outsourced Services,6528512,VENDOR,NOT CGA
Department of Health,Public Health England,NCSCT COMMUNITY INTEREST COMPANY,05-Apr-17,5980496,50600.66,NULL,UBB1,HI: Tobacco Control,54360,Other Outsourced Services,Smoking Cessation Practitioner Training and Assessment programmes - NCSCT,VENDOR,NOT CGA
Department of Health,Public Health England,NCSCT COMMUNITY INTEREST COMPANY,05-Apr-17,5980497,10120.13,NULL,UBB1,HI: Tobacco Control,54360,Other Outsourced Services,6528512,VENDOR,NOT CGA
Department of Health,Public Health England,NCSCT COMMUNITY INTEREST COMPANY,05-Apr-17,5980497,50600.66,NULL,UBB1,HI: Tobacco Control,54360,Other Outsourced Services,Smoking Cessation Practitioner Training and Assessment programmes - NCSCT,VENDOR,NOT CGA
Department of Health,Public Health England,LONDON BUSINESS SCHOOL,05-Apr-17,5980514,27600,NULL,PQV1,HP: Directors Office,35305,Training,PO to attend the Senior Executive Programme at London Business School,VENDOR,NOT CGA
Department of Health,Public Health England,LEICA MICROSYSTEMS (UK) LTD,05-Apr-17,5980520,6135.72,110780,ZZZA,Balance Sheet,93340,AUC - Plant & Equipment,6553614,VENDOR,NOT CGA
Department of Health,Public Health England,LEICA MICROSYSTEMS (UK) LTD,05-Apr-17,5980520,30678.59,110780,ZZZA,Balance Sheet,93340,AUC - Plant & Equipment,"Cryostat Installation (Items 100, 200, 300, 400, 500, 600, 700, 800, 900 ,1000, 1400, 1500) as per quote S.NR0075C ",VENDOR,NOT CGA
Department of Health,Public Health England,ROYAL SURREY COUNTY HOSPITAL,05-Apr-17,5980556,62125,NULL,UFA2,HI: NCS Breast,54360,Other Outsourced Services,Royal Surrey County Hosptials NHS Foundation trust - Part B services - National Co-ordination centre for physics of Mammography for breast screening programme,NHS,NHTRA2FT
Department of Health,Public Health England,HEALTH AND SOCIAL CARE INFORMATION CENTRE,05-Apr-17,5980593,5620,NULL,KGA2,HI: Directorate Office,54360,Other Outsourced Services,6555305,TAX AUTHORITY,NHTHIC033
Department of Health,Public Health England,HEALTH AND SOCIAL CARE INFORMATION CENTRE,05-Apr-17,5980593,28100,NULL,KGA2,HI: Directorate Office,54360,Other Outsourced Services,Hospital Episode Statistics (HES) Data Interrogation Service (HDIS) ,TAX AUTHORITY,NHTHIC033
Department of Health,Public Health England,HEALTH AND SOCIAL CARE INFORMATION CENTRE,05-Apr-17,5980595,20000,NULL,KGA2,HI: Directorate Office,54360,Other Outsourced Services,6559496,TAX AUTHORITY,NHTHIC033
Department of Health,Public Health England,HEALTH AND SOCIAL CARE INFORMATION CENTRE,05-Apr-17,5980595,100000,NULL,KGA2,HI: Directorate Office,54360,Other Outsourced Services,Extract Service for LAPH (PCMD and HES),TAX AUTHORITY,NHTHIC033
Department of Health,Public Health England,BRADFORD TEACHING HOSPITALS NHS TRUST,05-Apr-17,5980596,26184,NULL,UFA2,HI: NCS Breast,54360,Other Outsourced Services,Bradford Teaching Hospitals NHSFT: Breast Age Extension 2016-17 Pennine (BHU). Fixed Price SLA - ,NULL,NOT CGA
Department of Health,Public Health England,BRADFORD TEACHING HOSPITALS NHS TRUST,05-Apr-17,5980599,26184,NULL,UFA2,HI: NCS Breast,54360,Other Outsourced Services,Bradford Teaching Hospitals NHSFT: Breast Age Extension 2016-17 Pennine (BHU). Fixed Price SLA -,NULL,NOT CGA
Department of Health,Public Health England,CHELSEA AND WESTMINSTER HEALTHCARE NHS TRUST,05-Apr-17,5980633,51936,NULL,VEA7,VAC: Vaccines and Countermeasures C&A Programmes,58319,Vaccine Stocks - Other Costs,HPV MSM Funding Pilot - Chelsea & Westminster NHS Foundation Trust,NHS,NHTRQMFT
Department of Health,Public Health England,HEALTH AND SOCIAL CARE INFORMATION CENTRE,05-Apr-17,5980639,64599.88,NULL,UMA1,MKT: Digital Products and Estate,59103,Social Marketing - Digital,6554915,TAX AUTHORITY,NHTHIC033
Department of Health,Public Health England,HEALTH AND SOCIAL CARE INFORMATION CENTRE,05-Apr-17,5980639,322999.41,NULL,UMA1,MKT: Digital Products and Estate,59103,Social Marketing - Digital,Cross-floor PHEM Web Services - Additional RFT ,TAX AUTHORITY,NHTHIC033
Department of Health,Public Health England,HEALTH AND SOCIAL CARE INFORMATION CENTRE,05-Apr-17,5980659,8000,NULL,UMA8,MKT: Partnerships,59103,Social Marketing - Digital,6558044,TAX AUTHORITY,NHTHIC033
Department of Health,Public Health England,HEALTH AND SOCIAL CARE INFORMATION CENTRE,05-Apr-17,5980659,40000,NULL,UMA8,MKT: Partnerships,59103,Social Marketing - Digital,PHE 101: Wagtail consultancy - School Zone,TAX AUTHORITY,NHTHIC033
Department of Health,Public Health England,NEWCASTLE UPON TYNE HOSPITALS NHS TRUST,05-Apr-17,5980688,42034.68,NULL,AVF4,NIS: Newcastle Lab,47240,Other Subcontracted Lab Servs,Dried Blood Spot study March - October 2016. HMP Durham. Money owed to host Trust.,NULL,NHTRTDNFT
Department of Health,Public Health England,HEALTH EDUCATION ENGLAND,05-Apr-17,5980694,29850,NULL,UCA1,HI: Directors Office Balances,54345,Other Subcontracted Services,MOU: A collaboration between PHE & HEE withregards to e-learning platform,NHS,T1510
Department of Health,Public Health England,NORTH BRISTOL NHS TRUST,05-Apr-17,5980700,8681.5,110537,ZZZA,Balance Sheet,93340,AUC - Plant & Equipment,6561687,NHS,NHTRVJNFT
Department of Health,Public Health England,NORTH BRISTOL NHS TRUST,05-Apr-17,5980700,43407.5,110537,ZZZA,Balance Sheet,93340,AUC - Plant & Equipment,Bristol PHE Microbiology Service Risers - (Microbiological Cabinets to North Bristol) x 8.,NHS,NHTRVJNFT
Department of Health,Public Health England,NORTH BRISTOL NHS TRUST,05-Apr-17,5980715,895.33,NULL,BVY1,NIS: Bristol Lab,44105,Lab Equipment Under 5k,6561769,NHS,NHTRVJNFT
Department of Health,Public Health England,NORTH BRISTOL NHS TRUST,05-Apr-17,5980715,4476.67,NULL,BVY1,NIS: Bristol Lab,44105,Lab Equipment Under 5k,Shortfall to PO 6561769 - Telelift Specimen Transport system.,NHS,NHTRVJNFT
Department of Health,Public Health England,NORTH BRISTOL NHS TRUST,05-Apr-17,5980715,78720,109818,ZZZA,Balance Sheet,93340,AUC - Plant & Equipment,6561769,NHS,NHTRVJNFT
Department of Health,Public Health England,NORTH BRISTOL NHS TRUST,05-Apr-17,5980715,393600,109818,ZZZA,Balance Sheet,93340,AUC - Plant & Equipment,Telelift Specimen Transport system,NHS,NHTRVJNFT
Department of Health,Public Health England,EAST KENT HOSPITALS NHS TRUST,05-Apr-17,5980717,11276,NULL,UFA2,HI: NCS Breast,54360,Other Outsourced Services,East Kent Hospitals University NHSFT - Breast Age Extension 16-17 Maidstone. Fixed Price SLA - ,NHS,NHTRVVNFT
Department of Health,Public Health England,EAST KENT HOSPITALS NHS TRUST,05-Apr-17,5980717,13855,NULL,UFA2,HI: NCS Breast,54360,Other Outsourced Services,East Kent Hospitals University NHSFT - Breast Age Extension 16-17 Medway. Fixed Price SLA - ,NHS,NHTRVVNFT
Department of Health,Public Health England,EAST KENT HOSPITALS NHS TRUST,05-Apr-17,5980717,14585,NULL,UFA2,HI: NCS Breast,54360,Other Outsourced Services,East Kent Hospitals University NHSFT - Breast Age Extension 16-17 Kent & Canterbury. Fixed Price SLA - ,NHS,NHTRVVNFT
Department of Health,Public Health England,M&C SAATCHI (UK) LTD,05-Apr-17,5980763,5000,NULL,UMB2,MKT: Strategy and Planning,59027,Social Marketing - Creative development,6558554,VENDOR,NOT CGA
Department of Health,Public Health England,M&C SAATCHI (UK) LTD,05-Apr-17,5980763,25000,NULL,UMB2,MKT: Strategy and Planning,59027,Social Marketing - Creative development,Marketing Strategy production,VENDOR,NOT CGA
Department of Health,Public Health England,M&C SAATCHI (UK) LTD,05-Apr-17,5980765,11636.8,NULL,UMA2,MKT: Starting Well:Start4Life,59008,Social Marketing Advertising,6560996,VENDOR,NOT CGA
Department of Health,Public Health England,M&C SAATCHI (UK) LTD,05-Apr-17,5980765,58184,NULL,UMA2,MKT: Starting Well:Start4Life,59008,Social Marketing Advertising,Provision of service: Breastfeeding Campaign fee (third party costs),VENDOR,NOT CGA
Department of Health,Public Health England,INSIGHT DIRECT (UK) LTD,05-Apr-17,5980768,6172.04,NULL,KCA1,HI: NDR IT Infrastructure & Operations,61615,IT Licences,6561452,VENDOR,NOT CGA
Department of Health,Public Health England,INSIGHT DIRECT (UK) LTD,05-Apr-17,5980768,30860.18,NULL,KCA1,HI: NDR IT Infrastructure & Operations,61615,IT Licences,Tender ref: ITT2745 - SAS Visual Analytic and Visual Statitstics Software,VENDOR,NOT CGA
Department of Health,Public Health England,M&C SAATCHI (UK) LTD,05-Apr-17,5980773,4800,NULL,UMA6,MKT: Starting Well:Riseabove,59027,Social Marketing - Creative development,6560593,VENDOR,NOT CGA
Department of Health,Public Health England,M&C SAATCHI (UK) LTD,05-Apr-17,5980773,24000,NULL,UMA6,MKT: Starting Well:Riseabove,59027,Social Marketing - Creative development,Rise Above Young Voices Fees,VENDOR,NOT CGA
Department of Health,Public Health England,M&C SAATCHI (UK) LTD,05-Apr-17,5980802,5000,NULL,UMA2,MKT: Starting Well:Start4Life,59027,Social Marketing - Creative development,6560592,VENDOR,NOT CGA
Department of Health,Public Health England,M&C SAATCHI (UK) LTD,05-Apr-17,5980802,25000,NULL,UMA2,MKT: Starting Well:Start4Life,59027,Social Marketing - Creative development,S4Life Content,VENDOR,NOT CGA
Department of Health,Public Health England,NUVIA LIMITED,05-Apr-17,5980872,11635.6,107925,LTE0,HP: Radiation Effects Project Centre,54312,Sub-contracted R&D,6561029,VENDOR,NOT CGA
Department of Health,Public Health England,NUVIA LIMITED,05-Apr-17,5980872,58178,107925,LTE0,HP: Radiation Effects Project Centre,54312,Sub-contracted R&D,The Provision of SHIELD Epidemiology database services FY16/17 Quarter ,VENDOR,NOT CGA
Department of Health,Public Health England,NEWCASTLE UPON TYNE HOSPITALS NHS TRUST,05-Apr-17,5980955,66052.82,NULL,AVH7,NIS: Newcastle Site Overheads,66105,Rent,"Rental charges from host trust for the RVI site, PHE Newcastle",NULL,NHTRTDNFT
Department of Health,Public Health England,UNIVERSITY HOSPITALS COVENTRY & WARWICKSHIRE NHS TRUST,05-Apr-17,5980977,26553,NULL,UFA2,HI: NCS Breast,54360,Other Outsourced Services,"University Hospitals Coventry & Warwickshire NHST - Breast Age Extension 16-17 Warwickshire, Solihull & Coventry. Fixed Price SLA - ",PUBLIC SECTOR COMPANIES,NHTRKBNFT
Department of Health,Public Health England,HEART OF ENGLAND NHS FOUNDATION TRUST,05-Apr-17,5981086,5582.17,109747,ZZZA,Balance Sheet,93340,AUC - Plant & Equipment,6512679,NHS,NHTRR1FT
Department of Health,Public Health England,HEART OF ENGLAND NHS FOUNDATION TRUST,05-Apr-17,5981086,27910.83,109747,ZZZA,Balance Sheet,93340,AUC - Plant & Equipment,ALTERATIONS TO PHE BACTERIOLOGY IN BLOCK 33 FOR WASP LABORATORY INSTALLATION ,NHS,NHTRR1FT
Department of Health,Public Health England,GUYS & ST THOMAS NHS TRUST,05-Apr-17,5981166,32000,NULL,MLA7,HP: NPIS,54325,Sub-contracted NPIS,NPIS Services to PHE from Guy's & St Thomas' NHS foundation trust for year ,NHS,NHTRJ1FT
Department of Health,Public Health England,NHS SUPPLY CHAIN - VACCINES,05-Apr-17,5985082,27000000,NULL,ZZZA,Balance Sheet,96293,NHSSC account: C&A vaccines,NHS SUPPLY CHAIN TFR OF FUNDS ,NHS,DHCORE
Department of Health,Public Health England,OREBRO UNIVERSITY HOSPITAL,06-Apr-17,5972871,202,110593,EKB0,NIS: Bacteriology Project Centre,47240,Other Subcontracted Lab Servs,GASP - 4th ECDC.6268/ 2013/015 Specific contract: Subsistence allowance at 101 Euro per day ECDC flat-rate subsistence allowance for country visit to Finland (2 days),OVERSEAS,NOT CGA
Department of Health,Public Health England,OREBRO UNIVERSITY HOSPITAL,06-Apr-17,5972871,2350,110593,EKB0,NIS: Bacteriology Project Centre,47240,Other Subcontracted Lab Servs,GASP - 4th ECDC.6268/ 2013/015 Specific contract: Plus five shipment cost = 5x470 Euro,OVERSEAS,NOT CGA
Department of Health,Public Health England,OREBRO UNIVERSITY HOSPITAL,06-Apr-17,5972871,7807.8,110593,EKB0,NIS: Bacteriology Project Centre,47240,Other Subcontracted Lab Servs,6556907,OVERSEAS,NOT CGA
Department of Health,Public Health England,OREBRO UNIVERSITY HOSPITAL,06-Apr-17,5972871,8575,110593,EKB0,NIS: Bacteriology Project Centre,47240,Other Subcontracted Lab Servs,GASP - 4th ECDC.6268/ 2013/015 Specific contract: Susceptibility testing of 700 Euro-GASP isolates according to the Euro-GASP reporting protocol (300 for WP1 and 400 for WP3). 12.25 Euro per isolate,OVERSEAS,NOT CGA
Department of Health,Public Health England,OREBRO UNIVERSITY HOSPITAL,06-Apr-17,5972871,11952,110593,EKB0,NIS: Bacteriology Project Centre,47240,Other Subcontracted Lab Servs,GASP - 4th ECDC.6268/ 2013/015 Specific contract: Molecular typing of 400 isolates at 29.88 Euro per isolate,OVERSEAS,NOT CGA
Department of Health,Public Health England,OREBRO UNIVERSITY HOSPITAL,06-Apr-17,5972871,15960,110593,EKB0,NIS: Bacteriology Project Centre,47240,Other Subcontracted Lab Servs,GASP - 4th ECDC.6268/ 2013/015 Specific contract: Time cost 70 days @228.,OVERSEAS,NOT CGA
Department of Health,Public Health England,INTELLICYT CORPORATION,07-Apr-17,5926251,2360,110817,ZZZA,Balance Sheet,93340,AUC - Plant & Equipment,"Intellicyt: DAP Shipping provided in lieu of FOB, as per Quote No 02132017- 5MR; in conjunction with PO 6555391",VENDOR,NOT CGA
Department of Health,Public Health England,INTELLICYT CORPORATION,07-Apr-17,5926251,5337,110817,ZZZA,Balance Sheet,93340,AUC - Plant & Equipment,Intellicyt: IQue Screener Plus Installation & Training part No 50032 as per attached quotation 02132017-5MAR ,VENDOR,NOT CGA
Department of Health,Public Health England,INTELLICYT CORPORATION,07-Apr-17,5926251,38515,110817,ZZZA,Balance Sheet,93340,AUC - Plant & Equipment,Intellicyt:ForeCyt Offline Edition for single PC part No 90272 as per attached quotation 02132017-5MAR ,VENDOR,NOT CGA
Department of Health,Public Health England,INTELLICYT CORPORATION,07-Apr-17,5926251,280000,110817,ZZZA,Balance Sheet,93340,AUC - Plant & Equipment,Intellicyt: IQue Screener Plus 220V(EU) part No 91059 as per attached quotation 02132017-5MAR ,VENDOR,NOT CGA
Department of Health,Public Health England,TNS UK LIMITED,07-Apr-17,5992148,29932,NULL,UMB2,MKT: Strategy and Planning,59031,Social Marketing - Media eval,ECM 3851 Change4Life 2017 evaluation,VENDOR,NOT CGA
Department of Health,Public Health England,HEART OF ENGLAND NHS FOUNDATION TRUST,10-Apr-17,5690331,55476.64,NULL,BFB1,NIS: Birmingham Lab,41125,Molecular Test Kits,ABBOTT - NO PO,NHS,NHTRR1FT
Department of Health,Public Health England,IPSWICH HOSPITAL NHS TRUST,10-Apr-17,5803162,10729.95,NULL,BPZ1,NIS: Ipswich Lab,66105,Rent,PHE Licence fee and service cost for Ipswich as per Pathology Partnership contract,PUBLIC SECTOR,NHTRGQNFT
Department of Health,Public Health England,IPSWICH HOSPITAL NHS TRUST,10-Apr-17,5803162,10729.96,NULL,BPZ1,NIS: Ipswich Lab,66105,Rent,PHE Licence fee and service cost for Ipswich as per Pathology Partnership contract,PUBLIC SECTOR,NHTRGQNFT
Department of Health,Public Health England,IPSWICH HOSPITAL NHS TRUST,10-Apr-17,5803162,10729.96,NULL,BPZ1,NIS: Ipswich Lab,66105,Rent,PHE Licence fee and service cost for Ipswich as per Pathology Partnership contract,PUBLIC SECTOR,NHTRGQNFT
Department of Health,Public Health England,IPSWICH HOSPITAL NHS TRUST,10-Apr-17,5803167,10729.95,NULL,BPZ1,NIS: Ipswich Lab,66105,Rent,PHE Licence fee and service cost for Ipswich as per Pathology Partnership contract,PUBLIC SECTOR,NHTRGQNFT
Department of Health,Public Health England,IPSWICH HOSPITAL NHS TRUST,10-Apr-17,5803167,10729.96,NULL,BPZ1,NIS: Ipswich Lab,66105,Rent,PHE Licence fee and service cost for Ipswich as per Pathology Partnership contract,PUBLIC SECTOR,NHTRGQNFT
Department of Health,Public Health England,IPSWICH HOSPITAL NHS TRUST,10-Apr-17,5803167,10729.96,NULL,BPZ1,NIS: Ipswich Lab,66105,Rent,PHE Licence fee and service cost for Ipswich as per Pathology Partnership contract,PUBLIC SECTOR,NHTRGQNFT
Department of Health,Public Health England,HEART OF ENGLAND NHS FOUNDATION TRUST,10-Apr-17,5805176,45120.35,NULL,BFB1,NIS: Birmingham Lab,41125,Molecular Test Kits,ABBOTT CONSUMABLES,NHS,NHTRR1FT
Department of Health,Public Health England,TNS UK LIMITED,10-Apr-17,5917531,32433,NULL,ZZZA,Balance Sheet,96895,FMA Centre Accruals,FULL CREDIT ON V1313687,VENDOR,NOT CGA
Department of Health,Public Health England,EMCOR GROUP UK PLC,10-Apr-17,5972153,27373.69,110548,ZZZA,Balance Sheet,93340,AUC - Plant & Equipment,6531944,VENDOR,NOT CGA
Department of Health,Public Health England,EMCOR GROUP UK PLC,10-Apr-17,5972153,136868.45,110548,ZZZA,Balance Sheet,93340,AUC - Plant & Equipment,Emcor: Incinerator upgrade (for REP),VENDOR,NOT CGA
Department of Health,Public Health England,COMPUTACENTER (UK) LTD,10-Apr-17,5972372,3889.94,110135,ZZZA,Balance Sheet,93350,AUC - IT Equipment,Aditional cost for F5 load balancer support which was listed in the tender response comments but not included in the total cost (see item 3.2.19 Load Balancer in price list),VENDOR,NOT CGA
Department of Health,Public Health England,COMPUTACENTER (UK) LTD,10-Apr-17,5972372,5697.49,110135,ZZZA,Balance Sheet,93350,AUC - IT Equipment,6557074,VENDOR,NOT CGA
Department of Health,Public Health England,COMPUTACENTER (UK) LTD,10-Apr-17,5972372,24597.48,110135,ZZZA,Balance Sheet,93350,AUC - IT Equipment,"Load Balancer - F5 BIG-IP 2000 Load Balancer. Maintenance: F5 Networks Local Traffic Manager (8 GB) BIG-IP 2000s Level 1-3 Premium 1 Year:2,262.25 Service:F5 Networks F5-BIG-LTM-2000S Four-Hour Hardware Replacement 1 Year:1149.87",VENDOR,NOT CGA
Department of Health,Public Health England,CARAT A TRADING DIV OF DENTSU AEGIS UK LIMITED,10-Apr-17,5972488,36632.85,NULL,UMB3,MKT: Living Well: One You,59008,Social Marketing Advertising,6559458,VENDOR,NOT CGA
Department of Health,Public Health England,CARAT A TRADING DIV OF DENTSU AEGIS UK LIMITED,10-Apr-17,5972488,183336.89,NULL,UMB3,MKT: Living Well: One You,59008,Social Marketing Advertising,One You/Physical Activity/Biddable/2017,VENDOR,NOT CGA
Department of Health,Public Health England,TRUSTMARQUE SOLUTIONS LTD,10-Apr-17,5980086,150607.76,NULL,PQB1,FCD: ICT,61615,IT Licences,6561646,VENDOR,NOT CGA
Department of Health,Public Health England,TRUSTMARQUE SOLUTIONS LTD,10-Apr-17,5980086,753038.8,NULL,PQB1,FCD: ICT,61615,IT Licences,Migration to Server and Cloud Enrolment,VENDOR,NOT CGA
Department of Health,Public Health England,TRUSTMARQUE SOLUTIONS LTD,10-Apr-17,5980088,171319.02,NULL,PQB1,FCD: ICT,61615,IT Licences,6561646,VENDOR,NOT CGA
Department of Health,Public Health England,TRUSTMARQUE SOLUTIONS LTD,10-Apr-17,5980088,856595.1,NULL,PQB1,FCD: ICT,61615,IT Licences,Renewal of Enterprise Subscription Agreement,VENDOR,NOT CGA
